Cogmind - Beta 17 @@@ ROGUE MODE // 2026.06.24 @ 21:40:45 Player: szymekc Result: Destroyed by Architect with Modified Sigix Sheargun Performance ------------- Evolutions (9) 4500 Regions Visited (23) 4600 Robots Destroyed (466) 2330 Value Destroyed (24984) 24984 Prototype IDs (375) 7500 Alien Tech Used (3) 600 Bonus (65836) 65836 TOTAL SCORE: 110350 Bonus ------- High Alert Combat Kills 8576 Follower Combat Kills 5739 Prayed to X0-1V1 5000 Major X0-1V1 Interference 19050 Subatomizer Sterilization 3000 Network Hubs Disabled 400 Met Imprinter 300 Was Imprinted 300 MAIN.C Attacked Warlord 500 Warlord Defense Kills 3294 Built Enhanced Grunts 300 Met R17 at Cetus 500 Scanned by Researcher 500 Destroyed MAIN.C Guards 500 Met MAIN.C 5000 Destroyed MAIN.C Shell 5000 Destroyed MAIN.C 10000 Met Architect 300 Destroyed A8 300 Destroyed A6 400 Friendly Fire -3123 Cogmind --------- Core Integrity 0/1400 Matter 9/300 Energy 205/1250 System Corruption 1% Temperature Cool (0) Movement Hovering (162) Ox1 Location -1/Access_0 Parts ------- > --- POWER (2) -------- Improved Quantum Reactor > --- PROPULSION (9) --- Enhanced Flexi-carbon Leg Combat Antigrav System Combat Linear Gravjet > --- UTILITY (11) ----- Advanced Melee Analysis Suite Nanoactuators Femtoactuators Graphene Brace Experimental EM Shield X0-1V1's Piety Tracker > --- WEAPON (4) ------- Perforator Nanosword Plasma Lance (fused) > --- INVENTORY (5) ---- Experimental Powered Armor Enhanced Force Lance Peak State ------------ > --- POWER ------------ Zero-point Reactor Zero-point Reactor > --- PROPULSION ------- Experimental Biometal Heavy Treads Experimental Biometal Heavy Treads Experimental Biometal Heavy Treads High-density Centrium Heavy Treads > --- UTILITY ---------- High-capacity Storage Unit Spectral Analyzer Advanced Melee Analysis Suite Experimental Core Analyzer Nanoactuators Experimental Reaction Control System Improved Utility Shielding Medium Regenerative Plating Thermal Barrier Experimental Force Field X0-1V1's Piety Tracker > --- WEAPON ----------- Cooled Nova Cannon Centrium Greatsword Heavy Scimitar of Distortion Heavy Scimitar of Distortion > --- INVENTORY -------- Zero-point Reactor Cooled Antigrav System Combat Antigrav System Combat Antigrav System Cooled Linear Gravjet Cooled Linear Gravjet Cooled Linear Gravjet Combat Linear Gravjet Combat Linear Gravjet Combat Linear Gravjet Concept Chromion Battery Advanced Phase Shifter Graphene Brace Experimental Focal Shield Experimental EM Shield Subatomic Replicator Compact HERF Cannon Perforator Nanosword [Rating: 251] Favorites ----------- Power Heavy Ion Engine Engine Heavy Ion Engine Power Core Micro Fission Core Reactor Zero-point Reactor Propulsion Light Treads Treads Light Treads Leg Enhanced Biometal Leg Wheel Armored Huge Wheel Hover Unit Combat Linear Gravjet Flight Unit Cooled VTOL Module Utility X0-1V1's Piety Tracker Device X0-1V1's Piety Tracker Storage High-capacity Storage Unit Processor Spectral Analyzer Hackware Hacking Suite Protection Medium Regenerative Plating Weapon Heavy Assault Rifle Energy Gun Lightning Gun Energy Cannon Heavy Plasma Cannon Ballistic Gun Heavy Assault Rifle Ballistic Cannon Hardcell Cannon Launcher Scatter Rocket Array Special Weapon Molecular Deconstructor Slashing Weapon Heavy Scimitar of Distortion Piercing Weapon Plasma Lance Special Melee Weapon Chaos Jack Build | -11 -10 -9 -9 -7 -6 -6 -6 -6 -6 -6 -5 -5 -5 -5 -4 -4 -3 -3 -3 -2 -1 -1 -1 ------- Run | Yrd Mat Mat Min Zio Pro Fac Ext Cet Arc Hub Fac Upp Upp War Pro Fac Res Qua Frg Res Acc Com Ac0 Slots Evolved 18 | . . 2 . . . 6 . . . . 2 . . . . 2 2 . . 2 2 . . Power . | . . . . . . . . . . . . . . . . . . . . . . . . Propulsion 7 | . . 1 . . . 2 . . . . 1 . . . . . . . . 2 1 . . Utility 10 | . . . . . . 4 . . . . 1 . . . . 2 2 . . . 1 . . Weapon 1 | . . 1 . . . . . . . . . . . . . . . . . . . . . Parts Attached 317 | 6 6 25 4 3 7 22 22 11 1 16 43 8 5 15 14 3 13 10 5 5 35 27 11 Power 42 | 1 . 5 . . . 5 4 1 . 3 8 1 . 1 2 . . . 2 . 4 4 1 Engine 13 | 1 . 5 . . . 3 2 . . 1 1 . . . . . . . . . . . . Core 9 | . . . . . . 2 1 . . . 5 1 . . . . . . . . . . . Reactor 20 | . . . . . . . 1 1 . 2 2 . . 1 2 . . . 2 . 4 4 1 Propulsion 65 | 2 1 7 . 1 3 3 3 2 . 2 6 3 . 3 1 . 3 2 . 2 12 7 2 Treads 26 | 2 1 7 . . 3 2 3 2 . 2 . . . . . . . . . . . 4 . Leg 20 | . . . . . . . . . . . 6 3 . 3 1 . 2 2 . 2 . . 1 Wheel 1 | . . . . 1 . . . . . . . . . . . . . . . . . . . Hover 17 | . . . . . . . . . . . . . . . . . 1 . . . 12 3 1 Flight 1 | . . . . . . 1 . . . . . . . . . . . . . . . . . Utility 129 | 1 2 2 1 1 . 10 9 7 1 7 17 2 2 7 6 2 6 6 3 3 15 13 6 Device 78 | 1 1 . 1 1 . 6 4 3 1 3 8 2 1 4 5 2 4 5 1 1 12 9 3 Storage 10 | . 1 2 . . . . . . . . 3 . . . . . . . 2 . 1 1 . Processor 13 | . . . . . . 1 . . . 1 2 . . 2 . . 1 1 . 2 1 2 . Hackware 6 | . . . . . . 1 3 . . 2 . . . . . . . . . . . . . Protection 22 | . . . . . . 2 2 4 . 1 4 . 1 1 1 . 1 . . . 1 1 3 Artifact . | . . . . . . . . . . . . . . . . . . . . . . . . Weapon 81 | 2 3 11 3 1 4 4 6 1 . 4 12 2 3 4 5 1 4 2 . . 4 3 2 Energy Gun 8 | . . . . . . 1 1 . . . 4 . . 1 . . 1 . . . . . . Energy Cannon 12 | . . 1 . . 1 1 1 . . . 1 . 1 1 . . 1 1 . . 1 2 . Ballistic Gun 29 | 2 2 10 2 . 2 1 1 1 . 4 3 . . . . . . 1 . . . . . Ballistic Cannon 5 | . . . . . . . 1 . . . . 1 1 . 1 . . . . . . 1 . Launcher 4 | . . . 1 . . 1 . . . . . . . . . . 1 . . . 1 . . Special Weapon 8 | . 1 . . 1 . . 1 . . . . . . 2 1 1 1 . . . . . . Impact Weapon . | . . . . . . . . . . . . . . . . . . . . . . . . Slashing Weapon 6 | . . . . . . . 1 . . . 2 . . . . . . . . . 2 . 1 Piercing Weapon 6 | . . . . . 1 . . . . . 1 . . . 3 . . . . . . . 1 Special Melee Weapon 3 | . . . . . . . . . . . 1 1 1 . . . . . . . . . . Unidentified Prototypes 72 | . 1 2 . . . 5 2 6 . 3 12 . . 8 9 . 4 5 3 1 10 1 . Corrupted Parts 13 | . . . . . 3 . . 2 . 5 . . . 2 . . . . . . . . 1 System Corruption 95 | . . . . . 22 . . 19 . 42 . . . 11 . . . . . . . . 1 Parts Lost 76 | . . 2 . . 3 2 6 1 . 17 9 . . . 1 1 1 . 5 2 3 2 21 Power 11 | . . . . . . . 2 . . 3 3 . . . . . . . 1 . . . 2 Propulsion 12 | . . 1 . . . . 1 . . 2 . . . . . . . . . . 1 . 7 Utility 35 | . . . . . 1 2 2 . . 5 4 . . . . 1 1 . 4 2 1 2 10 Weapon 18 | . . 1 . . 2 . 1 1 . 7 2 . . . 1 . . . . . 1 . 2 Highest Loss Streak 17 | . . 2 . . 3 1 4 1 . 7 2 . . . 1 1 1 . 2 1 2 2 17 To Critical Strikes 1 | . . . . . . . . . . . 1 . . . . . . . . . . . . Average Backups 18 | . 11 17 22 22 22 21 20 21 20 19 17 18 17 19 19 18 19 20 18 18 15 14 3 Power . | . 1 . . . . . 1 1 1 . . . . . 1 2 2 2 1 1 . . . Propulsion 2 | . 1 2 3 4 3 2 2 2 2 3 2 1 1 1 1 1 4 4 6 7 . 2 . Utility 9 | . 3 9 13 12 14 13 12 12 10 10 9 10 11 8 8 6 5 6 6 5 9 6 1 Weapon 4 | . 5 4 5 5 4 5 4 6 7 5 4 5 4 6 6 7 5 2 1 1 3 3 1 Tool/Special . | . . . . . . . . . . . . . . . . . . . . . . . . Unused Backups 73 | . 4 12 1 3 1 2 4 1 . 1 4 . 2 6 1 . 4 3 . 1 9 12 2 Power 7 | . . 1 . . . . 1 1 . . . . . . . . . . . . 4 . . Propulsion 17 | . . 4 . . . . 1 . . . 1 . . . . . . 1 . 1 1 6 2 Utility 30 | . 1 3 . 1 1 . 1 . . 1 2 . 2 6 1 . 1 1 . . 4 5 . Weapon 18 | . 3 4 1 2 . 2 1 . . . 1 . . . . . 3 1 . . . . . Tool/Special 1 | . . . . . . . . . . . . . . . . . . . . . . 1 . Average Slot Usage (%) 92 | . 99 98 99 91 88 90 89 81 85 83 88 97 98 86 91 94 94 95 96 95 98 95 87 Engine 4 | . 14 11 10 10 10 6 11 6 6 4 . . . . . . . . . . . . . Reactor 3 | . . . . . . . . 3 6 6 4 5 5 4 5 5 4 4 6 8 7 7 6 Treads 9 | . 28 29 20 2 10 24 21 12 12 11 1 . . . . . . . . . . . . Leg 8 | . . . . . . . . . . . 19 25 27 24 27 25 22 22 22 24 . . . Hover 3 | . . . . . . . . . . . . . . . . . . . . . 29 28 29 Device 18 | . 14 11 19 20 14 12 15 18 23 18 19 21 18 13 10 19 26 27 26 21 21 23 21 Storage 6 | . 13 11 10 10 10 6 6 6 6 6 5 5 5 5 5 5 4 4 4 4 3 3 . Processor 4 | . . . . . . 3 2 . . 4 5 5 5 6 11 10 9 9 9 10 11 7 9 Protection 3 | . . . . . . 5 5 6 6 6 6 5 5 5 4 5 4 4 4 4 3 5 5 Energy Cannon 2 | . . . . . 5 9 9 . . . . . . 4 1 . 1 3 3 4 . 1 . Ballistic Gun 12 | . 27 35 39 40 33 14 8 11 12 16 3 4 1 . . . . . . . . . . Slashing Weapon 4 | . . . . . . . 2 6 6 2 4 5 9 11 8 5 4 4 4 4 6 11 8 Piercing Weapon 3 | . . . . . . . . . . . 4 5 5 2 8 15 13 13 13 12 6 1 2 Peak Build Rating 251 | 6 23 33 34 45 50 83 102 126 123 139 152 134 135 172 175 186 208 209 208 223 233 251 241 Average Rating 121 | 4 11 29 33 40 46 70 84 114 121 128 134 130 131 159 168 184 205 203 201 209 223 238 214 On Entrance 122 | . 6 23 30 34 45 50 78 95 122 123 108 129 130 135 172 171 186 206 204 202 216 232 233 Avg Prop Armor Cover (%) 3 | 24 24 . . . . 3 . . . 9 . . . . . . . 3 . 2 4 2 1 Naked Turns . | . . . . . . . . . . . . . . . . . . . . . . . . Heaviest Build 162 | 6 30 101 102 106 110 147 157 162 147 158 144 113 111 149 117 109 133 133 133 131 128 129 100 Greatest Support 345 | 40 40 60 40 40 60 100 128 160 160 160 150 112 108 140 140 138 138 136 135 161 161 345 129 Greatest Overweight (x) 3 | 1 1 2 2 3 3 1 1 1 . 1 1 1 1 1 . . . 1 . . 1 1 1 Average Overweight (x) . | . . . 2 2 2 1 1 . . . . . . . . . . . . . . . . Largest Inventory Capacity 25 | 5 15 25 25 25 25 25 25 25 25 25 25 20 20 20 20 20 20 20 20 20 20 20 5 Average Capacity 20 | 5 14 19 25 25 25 25 25 25 25 25 20 20 20 20 20 20 20 20 20 20 16 16 5 Most Carried 25 | 2 15 25 25 25 25 25 25 25 25 25 20 20 20 20 20 20 20 20 20 20 20 20 5 Average Carried 19 | . 11 18 24 24 24 23 23 24 23 23 18 19 19 19 19 18 19 19 18 18 15 15 4 Final Capacity 25 | 5 15 25 25 25 25 25 25 25 25 25 20 20 20 20 20 20 20 20 20 20 15 20 5 Final Carried 25 | 2 15 25 25 25 25 25 25 24 25 17 20 20 20 20 20 20 20 20 15 20 15 9 2 Class Distribution -------------------- 22% | Scavenger-Tank 18% | Gunner 15% | Mutant 13% | Gladiator 10% | Scavenger-Mutant 6% | Sprinter 3% | Scavenger-Gunner 3% | Scavenger-Gladiator Dominant Class ---------------- Mutant | -10/Materials Gunner | -9/Materials Gunner | -9/Mines Gunner | -7/Zion Gunner | -6/Proximity Caves Scavenger-Tank | -6/Factory Scavenger-Tank | -6/Extension Scavenger-Tank | -6/Cetus Scavenger-Tank | -6/Archives Scavenger-Tank | -6/Hub_04(d) Scavenger-Gladiator | -5/Factory Mutant | -5/Upper Caves Mutant | -5/Upper Caves Commander-Mutant | -5/Warlord Scavenger-Mutant | -4/Proximity Caves Scavenger-Mutant | -4/Factory Scavenger-Mutant | -3/Research Gladiator | -3/Quarantine Gladiator | -3/Protoforge Gladiator | -2/Research Scout | -1/Access Sprinter | -1/Command Sprinter | -1/Access_0 Resources | -11 -10 -9 -9 -7 -6 -6 -6 -6 -6 -6 -5 -5 -5 -5 -4 -4 -3 -3 -3 -2 -1 -1 -1 ----------- Run | Yrd Mat Mat Min Zio Pro Fac Ext Cet Arc Hub Fac Upp Upp War Pro Fac Res Qua Frg Res Acc Com Ac0 Matter Collected 14953 | 280 295 1239 76 142 85 469 985 283 230 1263 1464 391 348 1274 309 163 755 838 297 261 1280 1722 504 Remotely . | . . . . . . . . . . . . . . . . . . . . . . . . Salvage Created 25254 | 151 415 1152 80 . . 619 1240 235 390 1376 3007 692 253 1795 389 262 1864 1035 1214 811 2021 5144 1109 Parts 1189 | 9 28 65 8 . . 34 42 17 21 83 128 30 6 71 18 16 74 53 68 30 92 222 74 Haulers Intercepted 10 | . 2 1 . . . 1 . . . . 5 . . . . . . . . . 1 . . Recyclers Shooed 4 | . . . . . . 1 . . . 1 . . . . . . 2 . . . . . . Parts Field Recycled . | . . . . . . . . . . . . . . . . . . . . . . . . Retrieved Matter . | . . . . . . . . . . . . . . . . . . . . . . . . Parts Self-Destructed 44 | . . . . . 3 . . . . . . 25 5 . 11 . . . . . . . . Prevented 14 | . . . . . 7 . . . . . . . . . 7 . . . . . . . . Parts Restored . | . . . . . . . . . . . . . . . . . . . . . . . . Kills | -11 -10 -9 -9 -7 -6 -6 -6 -6 -6 -6 -5 -5 -5 -5 -4 -4 -3 -3 -3 -2 -1 -1 -1 ------- Run | Yrd Mat Mat Min Zio Pro Fac Ext Cet Arc Hub Fac Upp Upp War Pro Fac Res Qua Frg Res Acc Com Ac0 Combat Hostiles Destroyed 367 | . 9 28 3 . . 9 26 2 1 23 38 23 5 29 11 3 29 8 16 13 29 50 12 Melee 147 | . . . . . . . 2 . . . 25 5 3 . 4 2 6 8 12 10 22 45 3 Guns 64 | . 9 28 1 . . 2 4 2 1 14 3 . . . . . . . . . . . . Cannons 43 | . . . . . . 3 11 . . . . . 1 9 1 . 8 . . . . 1 9 AOE 73 | . . . 2 . . 3 6 . . 9 4 18 1 7 5 . 13 . . . 5 . . Classes Destroyed 29 | 2 6 2 . . . 2 2 . . 4 1 . . 3 1 . . 2 3 . . 1 . Worker 19 | . . . . . . . . . . 5 2 . . . . 1 3 . 2 . 3 3 . Builder 10 | . 1 . . . . . 1 . . 3 1 . . . . 1 1 . 1 . 1 . . Tunneler 7 | 3 1 . 1 . . . . . . . . . . . . . 1 . . . 1 . . Hauler 10 | . 2 1 . . . 1 . . . . 5 . . . . . . . . . 1 . . Recycler 9 | 1 . . 1 . . 1 . . . 1 2 . . . . . 1 1 . . 1 . . Carrier 1 | . . . . . . . . . . . 1 . . . . . . . . . . . . Mechanic 1 | . . . . . . . 1 . . . . . . . . . . . . . . . . Operator 22 | . 1 1 . . . . 2 . 9 . 2 . . . . 2 . . 1 1 . 3 . Drone 3 | . . . . . . . . . . . . . . . 2 . . . . . . 1 . Watcher 5 | . 1 . . . . . . . . 1 . . . . . . 1 . . . 1 1 . Swarmer 60 | . 3 4 3 . . 3 4 . . . . 11 . 5 2 . 1 . . 5 11 8 . Saboteur 3 | . . . . . . . . . . . . . . 3 . . . . . . . . . Grunt 122 | . 6 13 . . . 3 14 . . 5 12 9 1 6 2 1 21 4 5 . 5 15 . Brawler 9 | . . . . . . . 2 . . . 1 . . 3 1 . 2 . . . . . . Duelist 6 | . . 1 . . . . . . . 1 1 . . . 1 . 2 . . . . . . Protector 6 | . . . . . . . . . . 1 1 . . 3 . . . . . . . 1 . Researcher 7 | . . . . . . . . . . . . . . . . . . 6 1 . . . . Sentry 40 | . . 10 . . . . 5 . 1 1 7 1 . . . 1 2 1 2 2 2 5 . Demolisher 2 | . . . . . . . . . . . . . . 2 . . . . . . . . . Specialist 9 | . . . . . . . . . . 4 . . 4 1 . . . . . . . . . Hunter 35 | . . . . . . . . . . 5 9 . . 3 . . 1 . 2 4 6 5 . Programmer 40 | . . . . . . 3 . . . 1 7 2 . 2 3 1 . 2 3 2 5 9 . Heavy 1 | . . . . . . . . . . . . . . . . . . . . . . 1 . Behemoth 2 | . . . . . . . . . . . . . . . . . . . 1 . . 1 . Cetus Guard 2 | . . . . . . . . 2 . . . . . . . . . . . . . . . M Guard 1 | . . . . . . . . . . . . . . . . . . . . . . 1 . Enhanced Grunt 7 | . . . . . . . . . . . . . . 2 . . . . . . . . 5 Enhanced Hunter 5 | . . . . . . . . . . . . . . . . . . . . . . . 5 Lightning 5 | . . . . . . . . . . 5 . . . . . . . . . . . . . Decapitator 1 | . . . . . . . . . . . . . . . . . . . 1 . . . . Combat Programmer 2 | . . . . . . . . . . . . . . . . . . . . . . 2 . Executioner 3 | . . . . . . . . . . . . . . 3 . . . . . . . . . Alpha 7 1 | . . . . . . . . . . . . . . . . . . 1 . . . . . V-Series 2 | . . . . . . . . . . . . . . . . . . . 2 . . . . Thug 2 | . . . . . . . 1 . . . . . . 1 . . . . . . . . . Mutant 1 | . . . . . . 1 . . . . . . . . . . . . . . . . . Sapper 1 | . . . . . . . . . . . . . . 1 . . . . . . . . . Best Kill Streak 18 | 2 3 16 4 . . 3 14 2 3 7 8 18 2 12 7 2 7 5 8 5 7 9 10 Combat Bots Only 18 | . 3 16 3 . . 3 12 2 1 5 4 18 2 12 7 2 7 3 8 5 7 9 10 Max Kills in Single Turn 8 | 1 1 1 3 . . 2 7 1 2 3 2 8 1 4 3 1 5 1 1 1 3 2 3 Gunslinging 1 | . . . . . . . 1 . . 1 . . . . . . . . . . . . . Exploded 8 | . . . 2 . . 2 6 . . 2 1 8 1 3 3 . 3 . . . 2 . . Melee 2 | . . . . . . . 1 . . . 2 1 1 . 1 1 2 1 1 1 1 2 1 Uniques/NPCs Destroyed 5 | . . . . . . . . 1 . . . . . . . . . . . . . 2 2 A7 (-6/Cetus) MAIN.C Shell (-1/Command) MAIN.C (-1/Command) A8 (-1/Access_0) A6 (-1/Access_0) Combat | -11 -10 -9 -9 -7 -6 -6 -6 -6 -6 -6 -5 -5 -5 -5 -4 -4 -3 -3 -3 -2 -1 -1 -1 -------- Run | Yrd Mat Mat Min Zio Pro Fac Ext Cet Arc Hub Fac Upp Upp War Pro Fac Res Qua Frg Res Acc Com Ac0 Hostile Shots Fired 3797 | . 43 98 8 . 40 61 307 33 3 305 361 94 52 17 47 70 126 128 256 140 315 636 657 Missed 1625 | . 13 30 1 . 16 20 97 16 2 72 137 28 18 12 23 39 79 68 138 69 153 304 290 Deflected 18 | . . . . . . . . . . . 15 3 . . . . . . . . . . . Hits 2172 | . 30 68 7 . 24 41 210 17 1 233 224 66 34 5 24 31 47 60 118 71 162 332 367 Melee 37 | . . 2 . . . . . . . . 8 . . . 2 . . . 6 . . . 19 Projectile 2135 | . 30 66 7 . 24 41 210 17 1 233 216 66 34 5 22 31 47 60 112 71 162 332 348 AOE 18 | . . . . . . . 1 . . 2 3 . . . . . . . 1 . . 11 . Critical Strikes 105 | . 2 1 . . 1 1 8 6 . 17 18 2 1 1 2 3 3 3 11 2 13 5 5 Actively Blocked 30 | . . . . . . . . . . . . . . . . . . . 5 2 13 5 5 Part Disruptions 12 | . . . . . . 1 . . . 6 . . . . . . . 1 . . . 2 2 Damage Taken 26804 | . 334 965 56 . 541 599 3085 419 64 4559 3459 445 387 138 422 384 448 341 1289 425 1580 1030 5834 Core 2860 | . 38 95 . . 55 5 218 17 64 385 257 43 . 49 . 43 38 32 82 28 191 78 1142 Absorbed by Shields 7037 | . . . . . . . 574 125 . 137 885 310 204 66 . 145 217 370 812 465 762 611 1354 Reduced by Siege Mode 95 | . . . . . . . . . . 95 . . . . . . . . . . . . . Redirected to Shielding 297 | . . . . . . . . . . . . . . . . . . . . . 38 120 139 Ignored by Resistances 24202 | . . . . . . . 5 . . 2524 525 468 293 55 194 332 531 509 1372 733 2244 9372 5045 Regen/Repaired (Parts) 2232 | . . . . . . . . 19 11 297 179 . . 296 . 76 112 58 208 245 265 339 127 Core Remaining (%) 67 | 100 39 . . . 57 . . . . 16 . . . . 71 95 . . 64 97 . . . Volleys Fired 641 | 10 45 56 5 1 1 29 59 74 32 55 29 2 4 68 8 2 44 3 14 7 18 65 10 Largest 4 | 2 2 4 4 1 1 4 4 3 3 4 2 1 1 1 1 1 1 1 1 1 1 1 1 Hottest 238 | 40 100 92 92 100 90 238 238 180 125 180 108 50 51 81 70 . 94 113 113 113 113 150 100 Shots Fired 1146 | 20 86 171 17 1 1 75 155 107 67 160 38 3 4 68 8 2 44 3 16 7 18 65 10 Gun 720 | 20 82 171 16 . . 39 60 104 67 137 23 1 . . . . . . . . . . . Cannon 354 | . . . . . 1 33 82 3 . 17 . . 1 65 5 . 35 3 16 7 11 65 10 Launcher 26 | . . . 1 . . 3 1 . . 6 3 2 3 . . . . . . . 7 . . Special 46 | . 4 . . 1 . . 12 . . . 12 . . 3 3 2 9 . . . . . . Kinetic 657 | 20 82 171 16 . . 39 89 30 36 141 15 1 1 . . . . . . . . 6 10 Thermal 164 | . 4 . . 1 1 33 53 3 . . . . . . . . . 3 8 7 10 41 . Explosive 43 | . . . 1 . . 3 1 . . 6 3 2 3 3 3 2 9 . . . 7 . . Electromagnetic 258 | . . . . . . . . 74 31 13 8 . . 65 5 . 35 . 8 . 1 18 . Robot Hit Streak 17 | 13 5 12 2 . . 8 14 9 5 17 9 3 4 12 7 . 7 . 4 . . 3 4 Robot Miss Streak 23 | 1 4 5 5 . . 3 4 4 5 15 5 4 3 4 2 . 2 . 1 . . 2 23 Penetration Max 1 | . . . . . . . 1 1 . 1 1 . . 1 . . . . . . . . 1 Secondary Targets 16 | . 1 6 . . . . 1 . 1 6 1 . . . . . . . . . . . . Max Gunslinging Chain 2 | . 1 1 . . . . 1 . 1 2 1 . . . . . . . . . . . . Shots Hit Robots 1393 | 16 57 111 5 . . 39 96 64 40 108 128 15 21 49 22 19 73 37 68 39 91 211 84 Core Hits 897 | 8 27 54 5 . . 21 67 21 20 129 93 51 10 34 18 11 63 23 33 18 47 93 51 Critical Kills 22 | . 1 1 . . . 1 2 . . 8 . . . . . . . . . . . . 9 Critical Parts Destroyed 21 | . 1 . . . . . . 1 . 7 . . . . . . . . . . . . 12 Critical Strikes 115 | . 2 1 . . . 1 8 3 2 16 . 1 . 16 1 . 3 1 4 3 11 9 33 Meltdown 3 | . . . . . . 1 2 . . . . . . . . . . . . . . . . Destroy 43 | . 2 1 . . . . . 2 1 15 . . . . . . . . . . . . 22 Blast 4 | . . . . . . . 4 . . . . . . . . . . . . . . . . Corrupt 19 | . . . . . . . . 1 1 . . . . 16 1 . . . . . . . . Sever 28 | . . . . . . . 2 . . . . . . . . . 3 . . . 8 6 9 Impale 18 | . . . . . . . . . . 1 . 1 . . . . . 1 4 3 3 3 2 Melee Attacks 1219 | . . . . . 2 . 14 . 2 7 136 21 26 3 45 39 60 63 120 66 200 314 101 Impact . | . . . . . . . . . . . . . . . . . . . . . . . . Slashing 950 | . . . . . . . 14 . 2 4 130 16 20 3 38 20 38 41 60 44 150 278 92 Piercing 269 | . . . . . 2 . . . . 3 6 5 6 . 7 19 22 22 60 22 50 36 9 Sneak Attacks 54 | . . . . . . . 1 . 1 4 12 . 2 . 1 1 4 5 6 2 7 8 . Combat Hostiles 10 | . . . . . . . . . . . 5 . . . 1 . 1 . . 1 1 1 . Follow-up Attacks 249 | . . . . . . . . . . . 1 1 5 . 3 4 12 12 37 15 39 92 28 Martial Strikes 51 | . . . . . . . . . . . 49 2 . . . . . . . . . . . Damage Inflicted 74319 | 128 657 1743 296 . . 1360 4342 1196 1345 5887 6952 2066 1128 4860 2773 1125 7033 2272 3276 1655 6318 13861 4046 Guns 9197 | 128 612 1719 79 . . 675 854 1134 927 2662 407 . . . . . . . . . . . . Cannons 7752 | . . . . . . 416 1673 62 . 264 . . 32 3204 191 . 998 . 226 . . 504 182 Explosions 16242 | . . . 175 . . 265 1305 . 258 2642 1269 1457 358 1568 1625 426 3706 78 84 . 1000 26 . Melee 40436 | . . . . . . . 479 . 160 293 5276 609 725 . 865 699 2002 2194 2966 1655 5318 13331 3864 Ramming 161 | . 21 24 42 . . 4 31 . . 26 . . 13 . . . . . . . . . . Kinetic 9155 | 128 612 1719 79 . . 675 1576 704 471 2769 249 . 32 . . . . . . . . . 141 Thermal 1824 | . 24 . . . . 416 951 62 258 . . . . 31 . . . . 41 . . . 41 Explosive 15373 | . . . 175 . . 265 1305 . . 2642 1013 1457 358 1537 1625 426 3706 78 84 . 676 26 . Electromagnetic 6863 | . . . . . . . . 430 456 157 414 . . 3204 191 . 998 . 185 . 324 504 . Impact . | . . . . . . . . . . . . . . . . . . . . . . . . Slashing 35057 | . . . . . . . 479 . 160 162 5240 554 689 88 951 559 1791 1681 1482 1154 4354 12146 3567 Piercing 5886 | . . . . . . . . . . 131 36 55 36 . 6 140 538 513 1484 501 964 1185 297 Highest Corruption 79 | . . . . . 22 2 2 19 18 79 . . . 11 10 . 1 2 31 1 18 12 5 Average Corruption 12 | . . . . . 21 1 1 17 14 49 . . . 9 5 . 1 1 14 1 10 2 1 Corruption Purged 8 | . . . . . . . 2 1 4 . . . . . . . . . . . . 1 . Corruption Blocked . | . . . . . . . . . . . . . . . . . . . . . . . . Effects 216 | . . . . . 13 7 1 2 16 76 . . . . 11 . 9 8 35 1 23 14 . Message Errors 37 | . . . . . 5 1 . . 7 11 . . . . 1 . 3 2 4 . 1 2 . Matter Fused 47 | . . . . . . 2 . . 4 14 . . . . 2 . 3 3 11 1 4 3 . Heat Flow Errors 25 | . . . . . 3 1 . . 1 7 . . . . 2 . 1 1 3 . 4 2 . Energy Discharges 26 | . . . . . 3 . . 1 . 7 . . . . 2 . 1 . 7 . 4 1 . Parts Rejected 3 | . . . . . . . . . 1 1 . . . . . . . . 1 . . . . Parts Fused 5 | . . . . . . 1 . 1 . . . . . . . . . 1 . . 1 1 . Data Loss (minor) 22 | . . . . . 1 1 . . 1 8 . . . . 2 . . 1 1 . 3 4 . Data Loss (major) 9 | . . . . . 1 . . . . 2 . . . . . . . . 3 . 3 . . Misfires 6 | . . . . . . 1 . . . 4 . . . . . . . . 1 . . . . Alerts 12 | . . . . . . . 1 . . 5 . . . . 2 . 1 . 1 . 1 1 . Misdirections 8 | . . . . . . . . . . 4 . . . . . . . . 2 . 2 . . Weapon Failures 16 | . . . . . . . . . 2 13 . . . . . . . . 1 . . . . Overload Shots 2 | . . . . . . . . . . . . . . . . . . . . . . 2 . Overflow Damage 2827 | . . . . . . 5 96 . 52 9 96 121 94 161 278 63 153 208 217 17 470 705 82 Projectiles 203 | . . . . . . . 44 . . . . . . 56 56 . 21 . 26 . . . . Explosions 327 | . . . . . . 5 . . . 9 2 . . 105 49 63 45 . . . 49 . . Melee 2297 | . . . . . . . 52 . 52 . 94 121 94 . 173 . 87 208 191 17 421 705 82 Knockbacks 20 | . 1 . . . . . 6 . . 6 . . . . . . . . . . . . 7 Impact 3 | . 1 . . . . . 1 . . 1 . . . . . . . . . . . . . Kinetic 15 | . . . . . . . 4 . . 4 . . . . . . . . . . . . 7 Secondary 2 | . . . . . . . 1 . . 1 . . . . . . . . . . . . . Self-Inflicted Damage 1490 | . . . . . . . . . 45 513 272 38 108 . . 36 37 36 37 . 321 47 . Shots 56 | . . . . . . . . . 1 27 14 1 4 . . 1 1 1 1 . 4 1 . Rammed 12 | . 2 2 2 . . 1 2 . . 3 . . . . . . . . . . . . . Targets Rammed 13 | . 2 2 2 . . 1 2 . . 3 . . 1 . . . . . . . . . . Kicked 1 | . . . . . . . . . . . . . 1 . . . . . . . . . . Crushed . | . . . . . . . . . . . . . . . . . . . . . . . . Highest Temperature 384 | . 80 159 48 12 239 240 313 42 152 356 45 249 308 144 151 . 233 153 73 160 362 384 . Average Temperature 66 | . 23 38 25 7 73 74 67 21 54 110 21 129 135 53 49 . 74 86 42 68 84 64 . Received Heat Transfer 3464 | . 171 339 . . 90 168 1006 18 . 364 440 147 48 4 27 84 126 75 139 16 92 47 63 Effects 2 | . . . . . . . . . . . . . . . . . . . . . . 2 . Shutdowns 1 | . . . . . . . . . . . . . . . . . . . . . . 1 . Energy Bleed 1 | . . . . . . . . . . . . . . . . . . . . . . 1 . Siege Activations 2 | . . . . . . . . . . 2 . . . . . . . . . . . . . Total Turns 52 | . . . . . . . . . . 52 . . . . . . . . . . . . . Longest Duration 33 | . . . . . . . . . . 33 . . . . . . . . . . . . . Martial Activations 19 | . . . . . . . . . . . 16 3 . . . . . . . . . . . Total Turns 437 | . . . . . . . . . . . 389 48 . . . . . . . . . . . Longest Duration 83 | . . . . . . . . . . . 83 32 . . . . . . . . . . . Shielding Activations . | . . . . . . . . . . . . . . . . . . . . . . . . Robots Disrupted . | . . . . . . . . . . . . . . . . . . . . . . . . Combat Hostiles . | . . . . . . . . . . . . . . . . . . . . . . . . Robots Corrupted 24 | . . . . . . . . 1 . . . . . 17 1 . 2 . . . 1 2 . Combat Hostiles 19 | . . . . . . . . . . . . . . 13 1 . 2 . . . 1 2 . Parts Fried 55 | . . . . . . . . 4 12 . 2 . . 29 . . 3 . 2 . . 3 . Impact Corruptions . | . . . . . . . . . . . . . . . . . . . . . . . . Robots Melted 3 | . . . . . . 1 2 . . . . . . . . . . . . . . . . Combat Hostiles 3 | . . . . . . 1 2 . . . . . . . . . . . . . . . . Parts Melted 14 | . . 1 . . . 2 4 . . . . . . 1 . 3 2 . . . 1 . . Heat Transferred 2329 | . 50 . . . . 548 1435 100 150 . . . . . . . . . 37 . . . 9 Parts Sabotaged . | . . . . . . . . . . . . . . . . . . . . . . . . Parts Stolen . | . . . . . . . . . . . . . . . . . . . . . . . . Parts Stripped 108 | . . . . . . . . . . . 26 . . . . . . 10 17 24 12 19 . Power Chain Reactions 4 | . . . . . . . . . 3 . . . . 1 . . . . . . . . . Alert | -11 -10 -9 -9 -7 -6 -6 -6 -6 -6 -6 -5 -5 -5 -5 -4 -4 -3 -3 -3 -2 -1 -1 -1 ------- Run | Yrd Mat Mat Min Zio Pro Fac Ext Cet Arc Hub Fac Upp Upp War Pro Fac Res Qua Frg Res Acc Com Ac0 Maximum Alert Level 5 | . . 1 . . . 2 4 3 2 4 4 . . . . . 5 4 3 3 4 5 . Low Security (%) 30 | 100 100 55 100 . . 21 24 . . 13 . . . . . 100 39 . . . . . . Level 1 14 | . . 44 . . . 57 23 . 95 3 . . . . . . 5 . . . . . . Level 2 18 | . . . . . . 20 26 8 4 10 76 . . . . . 11 . 11 48 63 . . Level 3 20 | . . . . . . . 2 91 . 71 18 . . . . . 8 63 88 51 12 14 . Level 4 9 | . . . . . . . 22 . . . 4 . . . . . 20 36 . . 23 26 . Level 5 6 | . . . . . . . . . . . . . . . . . 13 . . . . 59 . High Security . | . . . . . . . . . . . . . . . . . . . . . . . . Max Security . | . . . . . . . . . . . . . . . . . . . . . . . . Sterilizations 1 | . . . . . . . . . . . . . . . . . . . . . 1 . . Peak Influence 1887 | 10 84 339 75 . . 462 1443 890 404 1117 1143 . . . . 93 1887 1430 885 803 1460 1524 . Initial 1057 | . 3 29 57 . . . 116 802 269 105 541 . . . . . 39 1057 780 497 448 932 . Average 495 | 1 23 190 9 . . 261 545 799 356 749 620 . . . . 22 719 1136 777 679 771 1192 . Influence Increases 17827 | 20 313 760 80 . 126 715 2133 288 286 1834 1279 480 100 1605 245 243 2309 746 517 581 1561 1492 114 Destroy 0b10 Robot/C 9580 | . 180 560 60 . 80 280 1120 160 80 760 760 460 100 980 180 60 1240 400 340 260 620 900 . Destroy 0b10 Robot/NC 565 | 20 30 10 10 . . 20 35 10 45 65 65 . . 15 15 20 75 10 20 5 50 45 . Destroy Leader 1358 | . 56 152 . . 10 74 122 . . 144 200 20 . . 20 10 198 32 40 50 96 134 . Allied During Kill 2625 | . . . . . 36 64 749 104 117 392 . . . 580 . . 367 101 . . 68 47 . Successful Hack 41 | . . 8 . . . . 14 . . . 12 . . . . . . . . . 7 . . Disable Machine 480 | . . 30 . . . 45 . . 30 90 45 . . . . . 45 30 30 . 45 30 60 Anti-Garrison Action 350 | . . . . . . 200 . . . 150 . . . . . . . . . . . . . Destroy Structure 1335 | . 2 . 10 . . 32 78 14 14 158 122 . . . . 78 294 98 42 33 195 111 54 Partial Spotted 225 | . . . . . . . . . . . . . . . . 15 15 . 15 . 45 135 . Lose Combat Pursuer 1080 | . 45 . . . . . 15 . . 75 75 . . 30 30 60 75 75 30 45 435 90 . Miscellaneous 188 | . . . . . . . . . . . . . . . . . . . . 188 . . . Influence Decreases 17827 | 15 246 683 229 . 126 476 938 1048 659 1028 1243 815 570 542 1646 166 505 1238 1021 718 852 987 2076 Entered New Map 9021 | . 2 43 92 . . . 123 632 405 196 566 423 154 338 1401 . 38 824 609 388 300 525 1962 Time Decay 7147 | 15 244 620 137 . 112 445 595 326 214 422 577 392 416 184 235 156 417 334 342 310 392 262 . Lost Part 639 | . . 20 . . 14 11 60 10 . 170 90 . . . 10 10 10 . 50 20 30 20 114 Lost Ally 1020 | . . . . . . 20 160 80 40 240 10 . . 20 . . 40 80 20 . 130 180 . Squads Dispatched 93 | . 2 2 . . . 5 8 . . 12 15 . . . 1 3 15 4 6 5 11 4 . Investigation 7 | . . 1 . . . 1 1 . . 1 1 . . . . . . . 1 . 1 . . Extermination 24 | . . . . . . 2 . . . 2 5 . . . . 1 4 1 1 3 3 2 . Reinforcement 31 | . 2 1 . . . 2 2 . . 4 3 . . . . 2 6 3 1 1 3 1 . Assault 21 | . . . . . . . 5 . . 3 3 . . . 1 . 2 . 1 1 4 1 . Garrison 10 | . . . . . . . . . . 2 3 . . . . . 3 . 2 . . . . Intercept . | . . . . . . . . . . . . . . . . . . . . . . . . Searches Triggered . | . . . . . . . . . . . . . . . . . . . . . . . . Construction Impeded 4 | . . . . . . 1 . . . 1 . . . . . 1 1 . . . . . . Haulers Reinforced 5 | . . . . . . 1 . . . . 1 . . . . . 1 . . . 2 . . Active Scanning Responses . | . . . . . . . . . . . . . . . . . . . . . . . . Cargo Convoy Interrupts . | . . . . . . . . . . . . . . . . . . . . . . . . Stealth | -11 -10 -9 -9 -7 -6 -6 -6 -6 -6 -6 -5 -5 -5 -5 -4 -4 -3 -3 -3 -2 -1 -1 -1 --------- Run | Yrd Mat Mat Min Zio Pro Fac Ext Cet Arc Hub Fac Upp Upp War Pro Fac Res Qua Frg Res Acc Com Ac0 Distress Signals 58 | . . . . . . 2 3 2 . 8 . . . . . 1 3 1 2 3 5 28 . Communications Jammed . | . . . . . . . . . . . . . . . . . . . . . . . . Distress Signals . | . . . . . . . . . . . . . . . . . . . . . . . . Times Spotted 905 | . 21 36 3 . 4 16 64 9 11 65 68 24 5 103 20 33 72 32 82 24 86 93 34 Peak Tracking Total 19 | . 4 10 3 . 3 3 12 5 2 12 6 14 3 19 7 13 7 8 9 7 11 10 19 Tactical Retreats 63 | . 2 . . . . . 1 . . 4 5 . . 2 4 5 3 3 13 3 11 4 3 ECM-based Alert Blocks 58 | . . . . . . . . . . . . . . . 7 1 . . 43 2 . 5 . Traps | -11 -10 -9 -9 -7 -6 -6 -6 -6 -6 -6 -5 -5 -5 -5 -4 -4 -3 -3 -3 -2 -1 -1 -1 ------- Run | Yrd Mat Mat Min Zio Pro Fac Ext Cet Arc Hub Fac Upp Upp War Pro Fac Res Qua Frg Res Acc Com Ac0 Traps Triggered 9 | . . 1 . . . . . . . . 2 . . . . . . 2 1 . 2 1 . Indirectly 1 | . . . . . . . . . . . 1 . . . . . . . . . . . . Trap Hack Attempts . | . . . . . . . . . . . . . . . . . . . . . . . . Triggered . | . . . . . . . . . . . . . . . . . . . . . . . . Disarmed . | . . . . . . . . . . . . . . . . . . . . . . . . Reprogrammed . | . . . . . . . . . . . . . . . . . . . . . . . . Reused . | . . . . . . . . . . . . . . . . . . . . . . . . Traps Extracted . | . . . . . . . . . . . . . . . . . . . . . . . . Installed . | . . . . . . . . . . . . . . . . . . . . . . . . Triggered . | . . . . . . . . . . . . . . . . . . . . . . . . Machines | -11 -10 -9 -9 -7 -6 -6 -6 -6 -6 -6 -5 -5 -5 -5 -4 -4 -3 -3 -3 -2 -1 -1 -1 ---------- Run | Yrd Mat Mat Min Zio Pro Fac Ext Cet Arc Hub Fac Upp Upp War Pro Fac Res Qua Frg Res Acc Com Ac0 Machines Disabled 50 | . . 2 . . 1 3 1 . 2 7 3 4 1 3 2 . 3 2 5 . 5 2 4 Max in Single Turn 3 | . . 1 . . 1 1 1 . 1 1 3 1 1 1 2 . . 1 1 . 1 1 1 Garrison Access 5 | . . . . . . 1 . . . 1 . . . . . . . . . . 3 . . Network Hub 2 | . . . . . . . . . . 2 . . . . . . . . . . . . . Energy Cycler 1 | . . . . . . . . . . . . . . . . . . . . . 1 . . Machines Repaired . | . . . . . . . . . . . . . . . . . . . . . . . . Machines Dismantled . | . . . . . . . . . . . . . . . . . . . . . . . . Machines Sabotaged . | . . . . . . . . . . . . . . . . . . . . . . . . Overloaded Fab Kills . | . . . . . . . . . . . . . . . . . . . . . . . . Hacking | -11 -10 -9 -9 -7 -6 -6 -6 -6 -6 -6 -5 -5 -5 -5 -4 -4 -3 -3 -3 -2 -1 -1 -1 --------- Run | Yrd Mat Mat Min Zio Pro Fac Ext Cet Arc Hub Fac Upp Upp War Pro Fac Res Qua Frg Res Acc Com Ac0 Machines Accessed 26 | . 1 5 . . . 1 4 . . 1 4 1 . 2 . 1 1 1 . . 3 1 . Terminals 12 | . 1 3 . . . . 4 . . . . . . . . . . . . . 3 1 . Fabricators . | . . . . . . . . . . . . . . . . . . . . . . . . Repair Stations 2 | . . . . . . . . . . . 2 . . . . . . . . . . . . Recycling Units 4 | . . 1 . . . . . . . . 2 . . . . . 1 . . . . . . Scanalyzers 1 | . . 1 . . . . . . . . . . . . . . . . . . . . . Garrison Access 4 | . . . . . . 1 . . . 1 . . . . . 1 . 1 . . . . . Total Hacks 64 | . 2 17 . . . 5 4 . . 3 14 1 . 2 . 3 2 1 . . 9 1 . Successful 24 | . 1 10 . . . 1 3 . . . 3 1 . 2 . . 1 . . . 1 1 . Failed 39 | . 1 6 . . . 4 1 . . 3 11 . . . . 3 1 1 . . 8 . . Catastrophic 10 | . . 1 . . . . 1 . . . 2 . . . . 2 . 1 . . 3 . . Database Lockouts 1 | . . 1 . . . . . . . . . . . . . . . . . . . . . Manual 106 | . 1 3 . . 1 9 6 1 . 10 11 . . 1 . 7 10 15 7 2 10 12 . Terminals 21 | . 2 5 . . . . 4 . . . . . . . . . . . . . 9 1 . Fabricators . | . . . . . . . . . . . . . . . . . . . . . . . . Repair Stations 8 | . . . . . . . . . . . 8 . . . . . . . . . . . . Recycling Units 10 | . . 2 . . . . . . . . 6 . . . . . 2 . . . . . . Scanalyzers 10 | . . 10 . . . . . . . . . . . . . . . . . . . . . Garrison Access 12 | . . . . . . 5 . . . 3 . . . . . 3 . 1 . . . . . Terminal Hacks 9 | . 1 . . . . . 3 . . . . 1 . 2 . . . . . . 1 1 . Prototype ID Bank 1 | . 1 . . . . . . . . . . . . . . . . . . . . . . Open Door 8 | . . . . . . . 3 . . . . 1 . 2 . . . . . . 1 1 . Fabricator Hacks . | . . . . . . . . . . . . . . . . . . . . . . . . Repair Station Hacks 1 | . . . . . . . . . . . 1 . . . . . . . . . . . . Scan Component 1 | . . . . . . . . . . . 1 . . . . . . . . . . . . Recycling Unit Hacks 2 | . . . . . . . . . . . 1 . . . . . 1 . . . . . . Retrieve Components 2 | . . . . . . . . . . . 1 . . . . . 1 . . . . . . Scanalyzer 8 | . . 8 . . . . . . . . . . . . . . . . . . . . . Insert Component 3 | . . 3 . . . . . . . . . . . . . . . . . . . . . Analyze 4 | . . 4 . . . . . . . . . . . . . . . . . . . . . Retrieve Study 1 | . . 1 . . . . . . . . . . . . . . . . . . . . . Garrison Access Hacks . | . . . . . . . . . . . . . . . . . . . . . . . . Unauthorized Hacks 4 | . . 2 . . . 1 . . . . 1 . . . . . . . . . . . . Terminals 2 | . . 2 . . . . . . . . . . . . . . . . . . . . . Assimilate 1 | . . 1 . . . . . . . . . . . . . . . . . . . . . Sabotage 1 | . . 1 . . . . . . . . . . . . . . . . . . . . . Fabricators . | . . . . . . . . . . . . . . . . . . . . . . . . Repair Stations 1 | . . . . . . . . . . . 1 . . . . . . . . . . . . Patch 1 | . . . . . . . . . . . 1 . . . . . . . . . . . . Recycling Units . | . . . . . . . . . . . . . . . . . . . . . . . . Scanalyzers . | . . . . . . . . . . . . . . . . . . . . . . . . Garrison Access 1 | . . . . . . 1 . . . . . . . . . . . . . . . . . Jam 1 | . . . . . . 1 . . . . . . . . . . . . . . . . . Data Cores Recovered 4 | . 1 1 . . . . . . . . . . . . . . . . 1 1 . . . Used . | . . . . . . . . . . . . . . . . . . . . . . . . Hacking Detections 16 | . 1 3 . . . 1 1 1 . 1 4 . . . . 1 . 1 . . 2 . . Full Trace Events 2 | . . . . . . . . . . 1 . . . . . . . . . . 1 . . Feedback Events . | . . . . . . . . . . . . . . . . . . . . . . . . Feedback Blocked . | . . . . . . . . . . . . . . . . . . . . . . . . Robot Schematics Acquired 7 | . . . . 3 . . . . . . . . . . . . . 4 . . . . . Robots Built . | . . . . . . . . . . . . . . . . . . . . . . . . Authchips . | . . . . . . . . . . . . . . . . . . . . . . . . Time . | . . . . . . . . . . . . . . . . . . . . . . . . Total Robot Build Rating . | . . . . . . . . . . . . . . . . . . . . . . . . Part Schematics Acquired 56 | . . 2 . 13 . . . . . . . . . . . . . 30 . . . 11 . Parts Built . | . . . . . . . . . . . . . . . . . . . . . . . . Authchips . | . . . . . . . . . . . . . . . . . . . . . . . . Time . | . . . . . . . . . . . . . . . . . . . . . . . . Total Part Build Rating . | . . . . . . . . . . . . . . . . . . . . . . . . Part Studies Acquired 1 | . . 1 . . . . . . . . . . . . . . . . . . . . . Parts Repaired . | . . . . . . . . . . . . . . . . . . . . . . . . Time . | . . . . . . . . . . . . . . . . . . . . . . . . Parts Recycled . | . . . . . . . . . . . . . . . . . . . . . . . . Recycled Matter . | . . . . . . . . . . . . . . . . . . . . . . . . Retrieved Matter . | . . . . . . . . . . . . . . . . . . . . . . . . Retrieved Components 12 | . . . . . . . . . . . 2 . . . . . 10 . . . . . . Parts Scanalyzed 2 | . . 2 . . . . . . . . . . . . . . . . . . . . . Part Schematics Acquired 2 | . . 2 . . . . . . . . . . . . . . . . . . . . . Parts Damaged . | . . . . . . . . . . . . . . . . . . . . . . . . Bothacking | -11 -10 -9 -9 -7 -6 -6 -6 -6 -6 -6 -5 -5 -5 -5 -4 -4 -3 -3 -3 -2 -1 -1 -1 ------------ Run | Yrd Mat Mat Min Zio Pro Fac Ext Cet Arc Hub Fac Upp Upp War Pro Fac Res Qua Frg Res Acc Com Ac0 Used RIF Installer . | . . . . . . . . . . . . . . . . . . . . . . . . Robots Hacked . | . . . . . . . . . . . . . . . . . . . . . . . . Non-combat . | . . . . . . . . . . . . . . . . . . . . . . . . Combat . | . . . . . . . . . . . . . . . . . . . . . . . . Robot Hacks Applied . | . . . . . . . . . . . . . . . . . . . . . . . . Relay Couplers Released 6 | . . . . . . . . . . 1 . . . . . . . . . . 5 . . Machine Destruction 6 | . . . . . . . . . . 1 . . . . . . . . . . 5 . . Fabnet Peak Effective % . | . . . . . . . . . . . . . . . . . . . . . . . . Robots Rewired 14 | . . . . . . . 9 . . . . . . 5 . . . . . . . . . Allies Hacked 3 | . . . . . . . . . . . 1 . . . . . . 1 . . 1 . . Hacks Repelled . | . . . . . . . . . . . . . . . . . . . . . . . . Allies | -11 -10 -9 -9 -7 -6 -6 -6 -6 -6 -6 -5 -5 -5 -5 -4 -4 -3 -3 -3 -2 -1 -1 -1 -------- Run | Yrd Mat Mat Min Zio Pro Fac Ext Cet Arc Hub Fac Upp Upp War Pro Fac Res Qua Frg Res Acc Com Ac0 Total Allies 78 | . . 1 1 4 . . 18 5 . 6 2 . . 7 . . 6 4 1 . 8 11 4 Largest Group 12 | . . 1 2 5 5 5 10 9 8 12 1 . . 7 . . 3 4 1 . 3 4 2 Highest-Rated Group 813 | . . 10 41 166 166 166 496 707 570 813 167 . . 460 . . 276 236 82 . 345 232 164 Highest-Rated Ally 167 | . . 10 31 40 40 40 159 159 96 96 167 . . 96 . . 122 59 82 . 115 69 82 Zionite Dispatches 12 | . . . . . . 1 1 . . 2 2 . . . . . 2 . . . 4 . . Heavy 2 | . . . . . . . 1 . . . . . . . . . 1 . . . . . . Light 2 | . . . . . . . . . . 1 . . . . . . . . . . 1 . . Recon 1 | . . . . . . 1 . . . . . . . . . . . . . . . . . Fire 1 | . . . . . . . . . . 1 . . . . . . . . . . . . . Hero 1 | . . . . . . . . . . . 1 . . . . . . . . . . . . Defense Resupply 2 | . . . . . . . . . . . 1 . . . . . . . . . 1 . . Hover Resupply 2 | . . . . . . . . . . . . . . . . . 1 . . . 1 . . Zionite Resupply 1 | . . . . . . . . . . . . . . . . . . . . . 1 . . Total Orders 12 | . . . . . . . . 2 1 2 1 . . 1 . . 1 . . . 3 1 . STAY 7 | . . . . . . . . 2 1 2 . . . . . . 1 . . . . 1 . AID 1 | . . . . . . . . . . . . . . 1 . . . . . . . . . DROP 4 | . . . . . . . . . . . 1 . . . . . . . . . 3 . . Ally Attacks 800 | . . . . . 32 25 127 65 22 92 . . . 85 . . 103 32 7 . 19 128 63 Total Damage 27239 | . . . . . 1012 944 4249 1394 566 2491 . . . 4163 . . 6900 1450 43 . 783 2228 1016 Kills 156 | . . . . . 4 9 34 9 3 18 . . . 24 . . 41 7 . . 4 2 1 Allies Corrupted 11 | . . . . . . . 1 1 . 2 . . . 5 . . . . . . 1 . 1 Allies Melted . | . . . . . . . . . . . . . . . . . . . . . . . . X0-1V1 Amusement Gains 825 | . 7 25 . . 25 10 85 . . 70 64 28 12 78 16 32 56 49 47 16 73 78 54 Good Acts 152 | . 1 3 4 . 2 6 4 . . 8 13 5 3 6 2 5 8 4 8 6 21 29 14 Bad Acts 131 | . . 6 1 . 4 1 10 . 2 4 10 7 8 . 1 3 12 2 9 5 13 20 13 Intel | -11 -10 -9 -9 -7 -6 -6 -6 -6 -6 -6 -5 -5 -5 -5 -4 -4 -3 -3 -3 -2 -1 -1 -1 ------- Run | Yrd Mat Mat Min Zio Pro Fac Ext Cet Arc Hub Fac Upp Upp War Pro Fac Res Qua Frg Res Acc Com Ac0 Active Infowar (turns) 17027 | 44 1096 . 1098 1781 . 953 647 . . 6 776 752 864 1349 561 566 1198 744 774 683 935 1897 303 Optics 8661 | . . . . . . . . . . . . . . 1000 561 566 1198 744 774 683 935 1897 303 Sensors 5278 | . . . . . . 1 . . . 6 580 752 864 409 215 211 797 338 178 286 641 . . Terrain 508 | . . . . . . 38 . . . . 470 . . . . . . . . . . . . Seismic 4276 | 44 1096 . 1098 1781 . 257 . . . . . . . . . . . . . . . . . Decoding 1343 | . . . . . . 696 647 . . . . . . . . . . . . . . . . ECM 465 | . . . . . . . . . . . . . . . 66 14 . . 288 45 10 42 . Robot Analysis Total . | . . . . . . . . . . . . . . . . . . . . . . . . Derelict Logs Recovered 8 | . . . 2 1 1 . . . . . . 1 2 . 1 . . . . . . . . Drone Launches . | . . . . . . . . . . . . . . . . . . . . . . . . Drone Recoveries . | . . . . . . . . . . . . . . . . . . . . . . . . Decoded 0b10 Intel 57 | . . . . . . 35 22 . . . . . . . . . . . . . . . . Items 57 | . . . . . . 35 22 . . . . . . . . . . . . . . . . Zionite Intel Received 11 | . . . . . . 1 . . . . 1 . . . . 1 1 3 1 . . 3 . Branch Access 1 | . . . . . . . . . . . 1 . . . . . . . . . . . . Emergency Access 1 | . . . . . . 1 . . . . . . . . . . . . . . . . . Guard Positions 1 | . . . . . . . . . . . . . . . . . . . 1 . . . . Component Stockpiles 1 | . . . . . . . . . . . . . . . . . . . . . . 1 . Prototype Stockpiles 1 | . . . . . . . . . . . . . . . . . . 1 . . . . . Prototype Schematics 2 | . . . . . . . . . . . . . . . . . . 1 . . . 1 . Trap Installations 1 | . . . . . . . . . . . . . . . . . 1 . . . . . . Active Terminals 2 | . . . . . . . . . . . . . . . . 1 . . . . . 1 . Active Garrisons 1 | . . . . . . . . . . . . . . . . . . 1 . . . . . Exploration | -11 -10 -9 -9 -7 -6 -6 -6 -6 -6 -6 -5 -5 -5 -5 -4 -4 -3 -3 -3 -2 -1 -1 -1 ------------- Run | Yrd Mat Mat Min Zio Pro Fac Ext Cet Arc Hub Fac Upp Upp War Pro Fac Res Qua Frg Res Acc Com Ac0 Turns Passed 25392 | 138 1353 2098 1130 1872 582 1359 1891 723 457 1039 1772 925 1006 1351 561 566 1198 744 774 683 935 1897 338 Spaces Moved 16360 | 68 641 989 459 1190 276 550 663 228 214 427 964 723 748 803 401 438 847 581 520 533 1379 2300 418 Core 22 | 9 13 . . . . . . . . . . . . . . . . . . . . . . Treads 4562 | 59 628 989 459 94 115 550 663 228 214 427 88 . . . . . . . . . . 48 . Legs 6471 | . . . . . . . . . . . 876 723 748 803 401 438 847 581 520 533 1 . . Wheels 1257 | . . . . 1096 161 . . . . . . . . . . . . . . . . . . Hover 4048 | . . . . . . . . . . . . . . . . . . . . . 1378 2252 418 Flight . | . . . . . . . . . . . . . . . . . . . . . . . . Fastest Speed 17 | 50 100 160 240 145 145 213 210 160 160 160 107 107 112 96 96 100 100 98 102 98 17 30 28 Average Speed 117 | 149 158 184 240 152 184 218 220 170 160 161 121 112 120 114 98 100 100 99 102 98 33 49 30 Slowest Speed 354 | 160 160 240 240 240 240 220 240 240 160 240 214 354 182 177 100 100 104 169 102 102 102 141 160 Overloaded Moves 77 | . . . . . . . . . . . 61 8 . . . . . . . . 8 . . Propulsion Burnouts . | . . . . . . . . . . . . . . . . . . . . . . . . Robots Hopped . | . . . . . . . . . . . . . . . . . . . . . . . . Potential Cave-ins 45 | . . . . . . . . . . . . . . . . . . . . 3 9 33 . Cave-ins Triggered 3 | . . . . . . . . . . . . . . . . . . . . . 1 2 . Teleports 3 | . . . . . . . . . . . . . . . . . . 1 2 . . . . Exploration Rate (%) 57 | 4 93 95 95 89 43 19 87 56 94 49 36 92 94 74 68 15 39 68 27 21 35 65 23 Regions Visited 23 Branch Regions 15 Pre-discovered Areas 5 | . . . 1 3 . . . . . . . . . . 1 . . . . . . . . Known Exits Taken 10 | . . . . . 1 1 . . . 1 1 1 1 . 1 . . . . 1 1 1 . Unknown Exits Taken 13 | 1 1 1 1 1 . . 1 1 1 . . . . 1 . 1 1 1 1 . . . . Scrap Searched 16 | . . . 1 4 . . . . . . . 5 5 . 1 . . . . . . . . Spaces Dug 190 | . 1 . . . . 8 2 . . 3 16 2 1 . 22 9 6 7 13 8 48 40 4 Terrain Destroyed 1069 | . 3 . 10 . . 29 90 7 14 197 73 33 106 49 56 43 123 15 19 15 79 100 8 Melee 149 | . . . . . . . 2 . . 1 16 2 1 . 22 9 6 5 12 8 40 21 4 Projectile 196 | . 3 . . . . 18 38 7 10 43 8 . . 6 2 . 1 3 7 7 5 38 . AOE 708 | . . . 10 . . 11 50 . 4 153 49 31 105 43 32 34 116 7 . . 34 29 . Terrain Rammed . | . . . . . . . . . . . . . . . . . . . . . . . . Walls Destroyed . | . . . . . . . . . . . . . . . . . . . . . . . . Machines Disabled . | . . . . . . . . . . . . . . . . . . . . . . . . Actions | -11 -10 -9 -9 -7 -6 -6 -6 -6 -6 -6 -5 -5 -5 -5 -4 -4 -3 -3 -3 -2 -1 -1 -1 --------- Run | Yrd Mat Mat Min Zio Pro Fac Ext Cet Arc Hub Fac Upp Upp War Pro Fac Res Qua Frg Res Acc Com Ac0 Total 20480 | 85 891 1152 475 1251 342 654 946 470 260 625 1338 797 822 1167 504 523 1079 719 691 641 1727 2777 544 Wait 1217 | . 174 15 1 35 47 15 45 133 9 85 117 19 20 161 10 40 79 39 36 26 63 45 3 Move 16334 | 67 640 988 458 1189 275 549 662 227 213 426 963 722 747 802 400 437 846 580 519 532 1377 2297 418 Hop . | . . . . . . . . . . . . . . . . . . . . . . . . Pick Up 306 | 2 17 31 3 10 5 13 19 9 2 11 36 6 9 22 6 . 16 10 4 13 22 36 4 Fast Attach 116 | 6 1 1 . 1 1 10 6 4 1 2 10 1 1 7 9 1 2 5 2 1 20 11 13 Attach 134 | . . 5 2 . 4 9 14 4 1 13 14 3 2 4 2 2 6 . 9 3 13 16 8 Detach 59 | . . . . . . 4 9 1 . . 6 . . 5 2 . 1 . . 1 12 11 7 Swap 412 | . 6 22 3 3 5 12 13 5 . 22 52 19 9 16 14 14 28 23 41 9 36 57 3 Drop 296 | . 6 32 1 12 2 12 16 13 . 1 27 8 9 26 14 . 13 11 . 5 35 47 6 Fire 641 | 10 45 56 5 1 1 29 59 74 32 55 29 2 4 68 8 2 44 3 14 7 18 65 10 Melee 802 | . . . . . 2 . 14 . 2 7 84 17 20 3 39 27 44 41 66 44 130 190 72 Ram . | . . . . . . . . . . . . . . . . . . . . . . . . Kick 1 | . . . . . . . . . . . . . 1 . . . . . . . . . . Crush 12 | . 2 2 2 . . 1 2 . . 3 . . . . . . . . . . . . . Escape Stasis 10 | . . . . . . . . . . . . . . . . . . 7 . . 1 2 . Rewire 140 | . . . . . . . 87 . . . . . . 53 . . . . . . . . . Trap . | . . . . . . . . . . . . . . . . . . . . . . . . Miscellaneous . | . . . . . . . . . . . . . . . . . . . . . . . . Route ------- -11/Scrapyard -10/Materials (discovered 6 exits: *Mat x3 / [*Min x2] / [*Sub]) -9/Materials (discovered 6 exits: [*Mat x3] / [*Min] / [*Sto x2]) -9/Mines (discovered 3 exits: [*Mat x2] / [*Zio]) -7/Zion -6/Proximity Caves -6/Factory (discovered 4 exits: *Fac / *Low x2 / *Ext) -6/Extension (discovered 2 exits: *Fac / *Cet) -6/Cetus (discovered 2 exits: *Fac / [*Arc]) -6/Archives (discovered 3 exits: *Fac / *Hub x2) -6/Hub_04(d) (discovered 3 exits: *Fac x3) -5/Factory (discovered 3 exits: *Fac / *Upp x2) -5/Upper Caves -5/Upper Caves (discovered 2 exits: *Fac / *War) -5/Warlord -4/Proximity Caves -4/Factory (discovered 2 exits: *Res / [*Upp]) -3/Research -3/Quarantine (discovered 3 exits: *Res / [*Sec] / *Frg) -3/Protoforge -2/Research -1/Access (discovered 2 exits: Sur / *Com) -1/Command (discovered 3 exits: *Sur x2 / *Ac0) -1/Access_0 (discovered 1 exit: Sur) History --------- Turn | Location | Event 8 | -11/Scrapyard | Discovered new exit (range 15) 139 | -11/Scrapyard | Entered Materials 313 | -10/Materials | Build established: Mutant 316 | -10/Materials | Discovered new exit (range 16) 651 | -10/Materials | Discovered new exit (range 16) 924 | -10/Materials | Discovered new exit (range 15) 1134 | -10/Materials | Discovered new exit (range 3) 1220 | -10/Materials | Discovered new exit (range 4) 1232 | -10/Materials | Made a sacrifice at D.C.S.S. Altar Unit 1233 | -10/Materials | Core integrity fell below 50% 1382 | -10/Materials | Discovered new exit (range 10) 1492 | -10/Materials | Entered another Materials area 1492 | -9/Materials | Evolved 2 slots: Propulsion x1, Weapon x1 1508 | -9/Materials | Discovered new exit (range 12) 1509 | -9/Materials | X0-1V1 foreshadows a heat wave 1571 | -9/Materials | X0-1V1 sent you into danger 1669 | -9/Materials | Destroyed 16 combat bots 1671 | -9/Materials | Ambient heat levels rising (+10) 1883 | -9/Materials | Ambient heat levels rising (+10) 2077 | -9/Materials | Discovered new exit (range 11) 2097 | -9/Materials | Build established: Gunner 2176 | -9/Materials | Ambient heat levels falling (-10) 2190 | -9/Materials | EX resistance permanently improved by X0-1V1 (+10%) 2227 | -9/Materials | X0-1V1 sent someone to keep an eye on you 2391 | -9/Materials | Central database locked down 2411 | -9/Materials | Energy generation permanently improved by X0-1V1 (+10) 2441 | -9/Materials | Discovered new exit (range 16) 2450 | -9/Materials | Build established: Scavenger-Gunner 2478 | -9/Materials | Ambient heat levels falling (-10) 2568 | -9/Materials | Discovered new exit (range 14) 2643 | -9/Materials | Discovered new exit (range 5) 2672 | -9/Materials | X0-1V1 announced a LAN party 2841 | -9/Materials | X0-1V1 mutated your Propulsion slot to Weapon slot 3002 | -9/Materials | Discovered new exit (range 8) 3183 | -9/Materials | Build established: Gunner 3330 | -9/Materials | X0-1V1 mutated your Weapon slot to Utility slot 3590 | -9/Materials | Entered Mines 3590 | -9/Mines | Accompanied by 1 ally 3671 | -9/Mines | Weapon slot count permanently improved by X0-1V1 (+1) 3747 | -9/Mines | X0-1V1 activates XOMVISION 3771 | -9/Mines | Discovered new exit (range 7) 3813 | -9/Mines | Received a Mining Laser from a helpful Derelict 3967 | -9/Mines | Found a damaged Exp. Sensor Array with a note attached 3972 | -9/Mines | Found Prototype Device 4116 | -9/Mines | Received a Rocket Launcher from a helpful Derelict 4256 | -9/Mines | X0-1V1 sent hostile S-10 Pest (x3) 4327 | -9/Mines | A Derelict revealed a hidden shortcut to a safe place 4477 | -9/Mines | X0-1V1 activates XOMVISION 4482 | -9/Mines | Discovered new exit (range 8) 4720 | -9/Mines | Entered Zion 4720 | -7/Zion | Accompanied by 1 ally 5457 | -7/Zion | Learned location of Armory (-3) 5602 | -7/Zion | Found CR-A16's Pointy Stick 6001 | -7/Zion | Met Imprinter 6025 | -7/Zion | Imprinted 6027 | -7/Zion | Declared Zion's savior 6303 | -7/Zion | Given A8's code to call for help 6303 | -7/Zion | Discovered new exit (range 13) 6592 | -7/Zion | Entered Proximity Caves 6592 | -6/Proximity Caves | Accompanied by 5 allies 6633 | -6/Proximity Caves | Identified exit to Factory 6633 | -6/Proximity Caves | X0-1V1 revealed exit location to -6/Factory 6698 | -6/Proximity Caves | Attracted the attention of an 0b10 checkpoint 6812 | -6/Proximity Caves | Spotted B-75 Beast 6846 | -6/Proximity Caves | Allies destroyed B-75 Beast 6861 | -6/Proximity Caves | System corruption reached 10% 6872 | -6/Proximity Caves | Lost 3 parts (1u2w) 7030 | -6/Proximity Caves | Acquired the password to a Derelict Tinkerer's latest research 7046 | -6/Proximity Caves | Found Prototype Special Weapon 7174 | -6/Proximity Caves | Entered Factory 7174 | -6/Factory | Accompanied by 5 allies 7174 | -6/Factory | Evolved 6 slots: Propulsion x2, Utility x4 7175 | -6/Factory | Identified exit to Lower Caves 7178 | -6/Factory | Identified Exp. Sensor Array 7434 | -6/Factory | X0-1V1 mutated your Utility slot to Power slot 7481 | -6/Factory | Build established: Scavenger-Tank 7481 | -6/Factory | Discovered new exit (range 9) 7484 | -6/Factory | Lost 3 allies 7610 | -6/Factory | P-60 Hacker assimilated allied Technician 2a 7669 | -6/Factory | Discovered exit to Lower Caves (range 8) 8053 | -6/Factory | Found Prototype Launcher 8053 | -6/Factory | Identified Scatter Rocket Array 8061 | -6/Factory | Found Scatter Rocket Array 8062 | -6/Factory | X0-1V1 activates XOMVISION 8066 | -6/Factory | Retrieved Zion intel report: Emergency Access 8067 | -6/Factory | Zion Recon squad teleported in 8067 | -6/Factory | Identified exit to Extension 8067 | -6/Factory | X0-1V1 revealed exit location to -6/Extension 8503 | -6/Factory | Terminal network hard line cut 8533 | -6/Factory | Entered Extension 8603 | -6/Extension | Zion Heavy squad teleported in 8873 | -6/Extension | Rescued A7 8960 | -6/Extension | Rescued a captive Derelict 9233 | -6/Extension | First assault squad dispatched 9414 | -6/Extension | X0-1V1 activates XOMVISION 9487 | -6/Extension | Spotted B-75 Beast 9487 | -6/Extension | Spotted B-75 Beast 9487 | -6/Extension | X0-1V1 sent you into danger 9490 | -6/Extension | X0-1V1 upgraded hostiles (x3) 9490 | -6/Extension | Spotted B-86 Titan 9490 | -6/Extension | Spotted B-86 Titan 9507 | -6/Extension | Identified Molecular Deconstructor 9515 | -6/Extension | Allies destroyed B-86 Titan 9523 | -6/Extension | Allies destroyed B-86 Titan 9546 | -6/Extension | Lost 4 parts (1p1n1u1w) 9769 | -6/Extension | Lost 4 allies 9813 | -6/Extension | Rescued a captive Derelict 9815 | -6/Extension | Rescued a captive Derelict 9897 | -6/Extension | Terminal network hard line cut 10016 | -6/Extension | Destroyed 12 combat bots 10028 | -6/Extension | Found Prototype Protection 10204 | -6/Extension | Rescued a captive Derelict 10241 | -6/Extension | Rescued a captive Derelict 10243 | -6/Extension | Rescued a captive Derelict 10360 | -6/Extension | Discovered new exit (range 10) 10362 | -6/Extension | Discovered new exit (range 6) 10424 | -6/Extension | Entered Cetus 10424 | -6/Cetus | Accompanied by 9 allies (A7) 10429 | -6/Cetus | Acquired a Cetus Manufacturing Module code from A7 10437 | -6/Cetus | Spotted Cetus Guard 10437 | -6/Cetus | Spotted Cetus Guard 10443 | -6/Cetus | Spotted Cetus Guard 10444 | -6/Cetus | Allies destroyed Cetus Guard 10444 | -6/Cetus | Spotted Cetus Guard 10450 | -6/Cetus | Allies destroyed Cetus Guard 10461 | -6/Cetus | Allies destroyed Cetus Guard 10465 | -6/Cetus | Allies destroyed Cetus Guard 10487 | -6/Cetus | Identified Zio. Heavy Carapace 10583 | -6/Cetus | Discovered new exit (range 16) 10609 | -6/Cetus | Spotted Cetus Guard 10609 | -6/Cetus | Spotted Cetus Guard 10614 | -6/Cetus | Spotted Cetus Guard 10620 | -6/Cetus | Spotted Cetus Guard 10622 | -6/Cetus | Allies destroyed Cetus Guard 10631 | -6/Cetus | Destroyed Cetus Guard 10637 | -6/Cetus | Destroyed Cetus Guard 10648 | -6/Cetus | Allies destroyed Cetus Guard 10660 | -6/Cetus | Discovered new exit (range 15) 10669 | -6/Cetus | Scared off Revision 17 10671 | -6/Cetus | Lost 3 allies 10783 | -6/Cetus | Started Cetus Manufacturing Module 10808 | -6/Cetus | Manufactured an Enhanced Grunt 10833 | -6/Cetus | Manufactured an Enhanced Grunt 10858 | -6/Cetus | Manufactured an Enhanced Grunt 10883 | -6/Cetus | Manufactured an Enhanced Grunt 10908 | -6/Cetus | Manufactured an Enhanced Grunt 11102 | -6/Cetus | Murdered A7 11103 | -6/Cetus | Extracted ID and sensor layout for unrecognized location from A7's data core 11109 | -6/Cetus | Found Corrupted Prototype Protection 11109 | -6/Cetus | Identified Med. Regenerative Plating 11114 | -6/Cetus | System corruption reached 10% 11147 | -6/Cetus | Entered Archives 11147 | -6/Archives | Accompanied by 8 allies 11215 | -6/Archives | Discovered new exit (range 16) 11389 | -6/Archives | Discovered new exit (range 14) 11442 | -6/Archives | Discovered new exit (range 15) 11604 | -6/Archives | Entered Hub_04(d) 11604 | -6/Hub_04(d) | Accompanied by 6 allies 11645 | -6/Hub_04(d) | Zion Light squad teleported in 11739 | -6/Hub_04(d) | Zion Fire squad teleported in 11763 | -6/Hub_04(d) | Garrison activated, responded to threat 11777 | -6/Hub_04(d) | Discovered new exit (range 4) 11787 | -6/Hub_04(d) | Identified exit to Factory 11856 | -6/Hub_04(d) | Discovered exit to Factory (range 15) 11908 | -6/Hub_04(d) | X0-1V1 upgraded hostiles (x2) 11931 | -6/Hub_04(d) | Network Hub disabled 11932 | -6/Hub_04(d) | Core integrity fell below 50% 11941 | -6/Hub_04(d) | Spotted Lightning 11943 | -6/Hub_04(d) | Spotted Lightning 11946 | -6/Hub_04(d) | System corruption reached 30% 11947 | -6/Hub_04(d) | Spotted Lightning 11954 | -6/Hub_04(d) | First assault squad dispatched 11961 | -6/Hub_04(d) | Spotted Lightning 11961 | -6/Hub_04(d) | Spotted Lightning 11961 | -6/Hub_04(d) | X0-1V1 whisked you away to safety 11962 | -6/Hub_04(d) | Lost 5 allies 11962 | -6/Hub_04(d) | Spotted Lightning 11963 | -6/Hub_04(d) | Destroyed Lightning 11982 | -6/Hub_04(d) | Found Prototype Device 11982 | -6/Hub_04(d) | Identified Exp. Phase Shifter 11985 | -6/Hub_04(d) | Found Prototype Device 11985 | -6/Hub_04(d) | Identified Exp. EM Shield 12033 | -6/Hub_04(d) | Destroyed Lightning 12070 | -6/Hub_04(d) | Lost 3 parts (2p1w) 12079 | -6/Hub_04(d) | X0-1V1 downgraded hostiles (x2) 12086 | -6/Hub_04(d) | Destroyed Lightning 12103 | -6/Hub_04(d) | Found Exp. EM Shield 12106 | -6/Hub_04(d) | Found Prototype Energy Cannon 12138 | -6/Hub_04(d) | Discovered exit to Factory (range 15) 12139 | -6/Hub_04(d) | Found Prototype Processor 12322 | -6/Hub_04(d) | Network Hub disabled 12485 | -6/Hub_04(d) | Spotted Lightning 12487 | -6/Hub_04(d) | Spotted Lightning 12491 | -6/Hub_04(d) | Spotted Lightning 12495 | -6/Hub_04(d) | Core integrity fell below 20% 12509 | -6/Hub_04(d) | X0-1V1 sent hostile X-67 Chaingunner (x3) 12579 | -6/Hub_04(d) | Core integrity restored by X0-1V1 (+143) 12597 | -6/Hub_04(d) | Lost 7 parts (1p1n2u3w) 12631 | -6/Hub_04(d) | Destroyed Lightning 12635 | -6/Hub_04(d) | Destroyed Lightning 12643 | -6/Hub_04(d) | Entered Factory 12643 | -5/Factory | Evolved 2 slots: Propulsion x1, Utility x1 12643 | -5/Factory | Identified Exp. Targeting Computer 12861 | -5/Factory | Found Quantum Capacitor 12990 | -5/Factory | Found Hvy. Scimitar of Distortion 13017 | -5/Factory | Zion hero teleported in (P1-3CE) 13089 | -5/Factory | Spotted B-75 Beast 13091 | -5/Factory | X0-1V1 sent you to a vault 13135 | -5/Factory | Found Chaos Jack 13243 | -5/Factory | First assault squad dispatched 13303 | -5/Factory | Found Imp. Powered Armor 13308 | -5/Factory | Found Chaos Jack 13434 | -5/Factory | Discovered new exit (range 8) 13467 | -5/Factory | Identified exit to Factory 13656 | -5/Factory | X0-1V1 redirected Transport squads to designated parking area 13851 | -5/Factory | Retrieved Zion intel report: Branch Access 13851 | -5/Factory | Identified exit to Upper Caves 13852 | -5/Factory | Zion Defense Resupply teleported in 13912 | -5/Factory | Terminal network hard line cut 14415 | -5/Factory | Entered Upper Caves 14424 | -5/Upper Caves | X0-1V1 activates XOMVISION 14493 | -5/Upper Caves | X0-1V1 sent you into danger 14494 | -5/Upper Caves | Attracted the attention of an 0b10 base 14548 | -5/Upper Caves | Destroyed 18 combat bots 14638 | -5/Upper Caves | X0-1V1 sent hostile G-50 Soldier (x3) 14763 | -5/Upper Caves | Sensors blinded by X0-1V1 14887 | -5/Upper Caves | Learned Factory security intel 14965 | -5/Upper Caves | Build established: Mutant 14977 | -5/Upper Caves | Encountered a Warlord checkpoint 14991 | -5/Upper Caves | Core integrity restored by X0-1V1 (+120) 15311 | -5/Upper Caves | Discovered new exit (range 7) 15318 | -5/Upper Caves | Identified exit to Upper Caves 15340 | -5/Upper Caves | Entered another Upper Caves area 15437 | -5/Upper Caves | Discovered exit to Factory (range 10) 15493 | -5/Upper Caves | Found Exp. ECM Suite 15544 | -5/Upper Caves | X0-1V1 sent hostile X-67 Chaingunner (x2) 15743 | -5/Upper Caves | X0-1V1 vaporized surrounding terrain (radius 21) 15759 | -5/Upper Caves | Sensors blinded by X0-1V1 15831 | -5/Upper Caves | X0-1V1 sent hostile X-67 Chaingunner (x2) 15937 | -5/Upper Caves | Encountered a Warlord checkpoint 15974 | -5/Upper Caves | X0-1V1 mutated your Utility slot to Weapon slot 16259 | -5/Upper Caves | Found Alien Artifact 16309 | -5/Upper Caves | Discovered new exit (range 9) 16312 | -5/Upper Caves | Learned Factory security intel 16313 | -5/Upper Caves | Learned Factory stockpile data 16316 | -5/Upper Caves | Identified exit to Warlord 16346 | -5/Upper Caves | Entered Warlord 16559 | -5/Warlord | Enhanced Grunt warped into view, answering call for help 16559 | -5/Warlord | Enhanced Grunt warped into view, answering call for help 16606 | -5/Warlord | Found Prototype Special Weapon 16606 | -5/Warlord | Identified RU-N14's Throwing Claymores v3 16611 | -5/Warlord | Found RU-N14's Throwing Claymores v3 16613 | -5/Warlord | Found RU-N14's Throwing Claymores v3 16616 | -5/Warlord | Found RU-N14's Throwing Claymores v3 16620 | -5/Warlord | Found RU-N14's Throwing Claymores v3 16670 | -5/Warlord | Found Prototype Reactor 16670 | -5/Warlord | Identified Vortex Chain Reactor 16677 | -5/Warlord | Found Exp. Phase Shifter 16692 | -5/Warlord | Found Prototype Device 16692 | -5/Warlord | Identified Exp. Focal Shield 16697 | -5/Warlord | Found Prototype Processor 16697 | -5/Warlord | Identified Spectral Analyzer 16702 | -5/Warlord | Identified EMDS 16711 | -5/Warlord | Found Prototype Hackware 16838 | -5/Warlord | Build established: Commander-Gladiator 16982 | -5/Warlord | Visited the Vortex Lab 16990 | -5/Warlord | Found Prototype Energy Gun 16990 | -5/Warlord | Identified Vortex Shotgun 16998 | -5/Warlord | Found Vortex Shotgun 16999 | -5/Warlord | Warlord's base attacked by MAIN.C 17146 | -5/Warlord | Destroyed 12 combat bots 17237 | -5/Warlord | Build established: Commander-Mutant 17254 | -5/Warlord | Warlord forces counterattacked 17301 | -5/Warlord | Spotted Striker 17349 | -5/Warlord | Lost 4 allies 17355 | -5/Warlord | Discovered new exit (range 12) 17399 | -5/Warlord | Spotted Executioner 17399 | -5/Warlord | Spotted Executioner 17402 | -5/Warlord | Destroyed Executioner 17416 | -5/Warlord | Destroyed Executioner 17436 | -5/Warlord | Found Corrupted Prototype Processor 17440 | -5/Warlord | Identified Exp. Core Analyzer 17441 | -5/Warlord | System corruption reached 10% 17455 | -5/Warlord | Lost 10 allies 17500 | -5/Warlord | Spotted Executioner 17500 | -5/Warlord | Spotted Striker 17513 | -5/Warlord | Destroyed Executioner 17554 | -5/Warlord | Lost 11 allies 17600 | -5/Warlord | P-70 Sage assimilated allied G2-LJT(b) 17600 | -5/Warlord | Spotted Striker 17610 | -5/Warlord | X0-1V1 whisked you away to safety 17638 | -5/Warlord | Lost 3 allies 17671 | -5/Warlord | Opened side exit 17674 | -5/Warlord | Warlord base infiltrated, sounded retreat 17697 | -5/Warlord | Entered Proximity Caves 17715 | -4/Proximity Caves | Build established: Scavenger-Mutant 17719 | -4/Proximity Caves | Attracted the attention of an 0b10 outpost 17742 | -4/Proximity Caves | Destroyed 7 combat bots 17801 | -4/Proximity Caves | Attracted the attention of an 0b10 checkpoint 17906 | -4/Proximity Caves | X0-1V1 activates XOMVISION 17974 | -4/Proximity Caves | Found Prototype Device 17974 | -4/Proximity Caves | Identified Thermal Barrier 17976 | -4/Proximity Caves | Found Prototype Device 17976 | -4/Proximity Caves | Identified Exp. Shield Generator 17983 | -4/Proximity Caves | Found Prototype Device 17983 | -4/Proximity Caves | Identified Exp. Shock Absorption System 17992 | -4/Proximity Caves | Found Med. Regenerative Plating 17994 | -4/Proximity Caves | Found Thermal Barrier 18175 | -4/Proximity Caves | Found DCF Scrap (16 items) 18220 | -4/Proximity Caves | Discovered exit to Factory (range 18) 18238 | -4/Proximity Caves | X0-1V1 activates XOMVISION 18258 | -4/Proximity Caves | Entered Factory 18258 | -4/Factory | Evolved 2 slots: Utility x2 18381 | -4/Factory | Discovered new exit (range 24) 18468 | -4/Factory | X0-1V1 sent hostile H-71 Marshal (x1) 18753 | -4/Factory | Retrieved Zion intel report: Active Terminals 18779 | -4/Factory | Discovered new exit (range 21) 18814 | -4/Factory | X0-1V1 sent hostile H-71 Marshal (x1) 18824 | -4/Factory | Entered Research 18824 | -3/Research | Evolved 2 slots: Utility x2 19152 | -3/Research | X0-1V1 announced a LAN party 19194 | -3/Research | X0-1V1 whisked you away to safety 19205 | -3/Research | Retrieved Zion intel report: Trap Installations 19206 | -3/Research | Zion Hover Resupply teleported in 19257 | -3/Research | Zion Heavy squad teleported in 19260 | -3/Research | X0-1V1 sent you into danger 19354 | -3/Research | X0-1V1 upgraded ally (x2) 19389 | -3/Research | Spotted B-86 Titan 19399 | -3/Research | Allies destroyed B-86 Titan 19574 | -3/Research | First assault squad dispatched 19604 | -3/Research | Garrison activated, responded to threat 19646 | -3/Research | Destroyed 7 combat bots 19716 | -3/Research | Found Prototype Protection 19730 | -3/Research | Identified Zio. Weapon Casing 19742 | -3/Research | X0-1V1 activates XOMVISION 19845 | -3/Research | X0-1V1 sent allied Executioner (x1) 19923 | -3/Research | Found Prototype Launcher 19923 | -3/Research | Identified Tesla Bomb Launcher 19939 | -3/Research | X0-1V1 enhanced Transport squad support 20000 | -3/Research | X0-1V1 vaporized surrounding terrain (radius 20) 20000 | -3/Research | Discovered new exit (range 16) 20011 | -3/Research | Build established: Mutant 20022 | -3/Research | Entered Quarantine 20036 | -3/Quarantine | Found Alien Artifact 20089 | -3/Quarantine | Retrieved Zion intel report: Prototype Stockpiles 20250 | -3/Quarantine | Found Alien Artifact 20250 | -3/Quarantine | Identified Dimensional Node Initializer (x2) 20250 | -3/Quarantine | Initialized slip node 20255 | -3/Quarantine | Found Alien Artifact 20255 | -3/Quarantine | Identified Transdimensional Reconstructor 20255 | -3/Quarantine | Warped through subspace to slip node 20265 | -3/Quarantine | Found Transdimensional Reconstructor 20268 | -3/Quarantine | Found Transdimensional Reconstructor 20341 | -3/Quarantine | Retrieved Zion intel report: Prototype Schematics 20395 | -3/Quarantine | Discovered new exit (range 13) 20404 | -3/Quarantine | Retrieved Zion intel report: Active Garrisons 20454 | -3/Quarantine | X0-1V1 sent you to a vault 20542 | -3/Quarantine | Scanned by Researcher 20551 | -3/Quarantine | Spotted Alpha 7 20570 | -3/Quarantine | Lost 4 allies 20581 | -3/Quarantine | Destroyed Alpha 7 20645 | -3/Quarantine | Found Prototype Processor 20645 | -3/Quarantine | Identified Exp. Target Analyzer 20649 | -3/Quarantine | Found Prototype Ballistic Gun 20649 | -3/Quarantine | Identified Multirail 20688 | -3/Quarantine | Spotted Fortress 20750 | -3/Quarantine | X0-1V1 enhanced Transport squad support 20761 | -3/Quarantine | Discovered new exit (range 6) 20761 | -3/Quarantine | Discovered new exit (range 7) 20766 | -3/Quarantine | Entered Protoforge 20818 | -3/Protoforge | Superfortress began startup sequence 20827 | -3/Protoforge | Build established: Gladiator 20832 | -3/Protoforge | Retrieved Zion intel report: Guard Positions 20895 | -3/Protoforge | System corruption reached 10% 20931 | -3/Protoforge | Spotted Hotshot 20932 | -3/Protoforge | Spotted Hotshot 20932 | -3/Protoforge | Spotted Hotshot 20932 | -3/Protoforge | Spotted Hotshot 20932 | -3/Protoforge | Spotted Hotshot 20942 | -3/Protoforge | Spotted Hotshot 20942 | -3/Protoforge | Spotted Hotshot 20942 | -3/Protoforge | Spotted Hotshot 20942 | -3/Protoforge | Spotted Hotshot 20959 | -3/Protoforge | X0-1V1 sent someone to keep an eye on you 20987 | -3/Protoforge | Spotted B-86 Titan 20987 | -3/Protoforge | Spotted Hotshot 20987 | -3/Protoforge | Spotted Hotshot 20987 | -3/Protoforge | Spotted Hotshot 20987 | -3/Protoforge | Spotted Hotshot 20988 | -3/Protoforge | Warped through subspace 21054 | -3/Protoforge | X0-1V1 whisked you away to safety 21068 | -3/Protoforge | Spotted Overlord 21075 | -3/Protoforge | Discovered new exit (range 19) 21112 | -3/Protoforge | Initialized slip node 21176 | -3/Protoforge | Destroyed B-86 Titan 21204 | -3/Protoforge | X0-1V1 turns hostiles against one another 21326 | -3/Protoforge | Destroyed 8 combat bots 21365 | -3/Protoforge | Garrison activated, responded to threat 21379 | -3/Protoforge | Spotted Decapitator 21391 | -3/Protoforge | Destroyed Decapitator 21397 | -3/Protoforge | Spotted Decapitator 21398 | -3/Protoforge | Spotted Decapitator 21421 | -3/Protoforge | Spotted V764-t 21426 | -3/Protoforge | Spotted V028-t 21441 | -3/Protoforge | Found Prototype Storage 21441 | -3/Protoforge | Identified Cep. NT7 Matterbank 21448 | -3/Protoforge | Found Prototype Storage 21448 | -3/Protoforge | Identified Cep. Chromion Battery 21455 | -3/Protoforge | Found Prototype Device 21484 | -3/Protoforge | Spotted V797-n 21500 | -3/Protoforge | System corruption reached 30% 21502 | -3/Protoforge | Identified Cep. Matter Streamer 21505 | -3/Protoforge | Warped through subspace to slip node 21516 | -3/Protoforge | First assault squad dispatched 21522 | -3/Protoforge | Destroyed V764-t 21526 | -3/Protoforge | Destroyed V797-n 21540 | -3/Protoforge | Entered Research 21540 | -2/Research | Evolved 2 slots: Propulsion x2 21577 | -2/Research | X0-1V1 announced a LAN party 21619 | -2/Research | Found Prototype Reactor 21622 | -2/Research | Found Prototype Reactor 21666 | -2/Research | X0-1V1 added 0b10 threat records associated with you (considerable) 21748 | -2/Research | Found Prototype Launcher 21790 | -2/Research | First assault squad dispatched 21981 | -2/Research | X0-1V1 enhanced Transport squad support 22159 | -2/Research | Discovered new exit (range 13) 22170 | -2/Research | Identified exit to Access 22223 | -2/Research | Entered Access 22223 | -1/Access | Evolved 2 slots: Propulsion x1, Utility x1 22255 | -1/Access | Found Exp. Core Analyzer 22284 | -1/Access | System corruption reached 10% 22287 | -1/Access | Zion Zionite Resupply teleported in 22291 | -1/Access | Found Prototype Energy Cannon 22291 | -1/Access | Identified Zio. Alpha Cannon 22294 | -1/Access | X0-1V1 sent you into danger 22298 | -1/Access | Found Exp. EM Shield 22300 | -1/Access | X0-1V1 released a cloud of subatomizers 22335 | -1/Access | Identified exit to Command 22335 | -1/Access | X0-1V1 revealed exit location to -1/Command 22335 | -1/Access | X0-1V1 activates XOMVISION 22364 | -1/Access | Zion Defense Resupply teleported in 22369 | -1/Access | Found Exp. Focal Shield 22378 | -1/Access | Identified Zero-point Reactor (x2) 22393 | -1/Access | Identified exit to Surface 22393 | -1/Access | X0-1V1 revealed exit location to -0/Surface 22412 | -1/Access | X0-1V1 sent you to a vault 22416 | -1/Access | Found Prototype Processor 22416 | -1/Access | Identified Exp. Armor Integrity Analyzer 22423 | -1/Access | Found Prototype Device 22423 | -1/Access | Identified Adv. Particle Accelerator 22427 | -1/Access | Found Prototype Device 22427 | -1/Access | Identified Exp. EM Disruption Field 22432 | -1/Access | Found Hvy. Scimitar of Distortion 22636 | -1/Access | X0-1V1 enhanced Transport squad support 22679 | -1/Access | Zion Hover Resupply teleported in 22752 | -1/Access | Build established: Scout 22756 | -1/Access | X0-1V1 turns hostiles against one another 22768 | -1/Access | Zion Light squad teleported in 22798 | -1/Access | X0-1V1 activates XOMVISION 22814 | -1/Access | Identified Point Singularity Launcher 22864 | -1/Access | Crushed by falling debris 22882 | -1/Access | Lost 3 allies 23002 | -1/Access | Sterilization system engaged 23081 | -1/Access | Energy Cycler disabled 23100 | -1/Access | X0-1V1 sent you into danger 23118 | -1/Access | Destroyed 7 combat bots 23156 | -1/Access | Spotted B-99 Colossus 23156 | -1/Access | Spotted B-99 Colossus 23158 | -1/Access | Entered Command 23186 | -1/Command | Spotted B-99 Colossus 23192 | -1/Command | Retrieved Zion intel report: Active Terminals 23195 | -1/Command | Retrieved Zion intel report: Component Stockpiles 23196 | -1/Command | Build established: Sprinter 23205 | -1/Command | X0-1V1 revealed exit location to -0/Surface 23217 | -1/Command | Spotted B-99 Colossus 23228 | -1/Command | Retrieved Zion intel report: Prototype Schematics 23245 | -1/Command | Identified exit to Access_0 23245 | -1/Command | X0-1V1 revealed exit location to -1/Access_0 23276 | -1/Command | Spotted M Guard 23276 | -1/Command | X0-1V1 sent hostile S-43 Plague (x3) 23287 | -1/Command | Spotted M Guard 23295 | -1/Command | Spotted Combat Programmer 23295 | -1/Command | Spotted Combat Programmer 23336 | -1/Command | X0-1V1 sent you into danger 23354 | -1/Command | Destroyed Combat Programmer 23374 | -1/Command | X0-1V1 sent allied Fireman (x2) 23396 | -1/Command | X0-1V1 revealed exit location to -0/Surface 23415 | -1/Command | X0-1V1 sent you to a vault 23463 | -1/Command | Lost 3 allies 23489 | -1/Command | X0-1V1 whisked you away to safety 23554 | -1/Command | Destroyed 9 combat bots 23562 | -1/Command | Destroyed B-99 Colossus 23643 | -1/Command | Destroyed M Guard 23658 | -1/Command | First assault squad dispatched 23661 | -1/Command | Destroyed Combat Programmer 23687 | -1/Command | All MAIN.C guards destroyed 23694 | -1/Command | Found Prototype Device 23694 | -1/Command | Identified AEGIS Remote Shield 23699 | -1/Command | Found Zero-point Reactor 23704 | -1/Command | Found Thermal Barrier 23714 | -1/Command | Met MAIN.C 23714 | -1/Command | 0b10 Conduit disabled 23716 | -1/Command | X0-1V1 sent allied G-73 Enforcer (x4) 23730 | -1/Command | Destroyed MAIN.C Shell 23733 | -1/Command | MAIN.C activated Command garrisons 23803 | -1/Command | Destroyed MAIN.C 23805 | -1/Command | Identified Subatomic Replicator 23805 | -1/Command | Discovered exit to Surface (range 53) 23805 | -1/Command | Discovered exit to Surface (range 81) 23805 | -1/Command | Extracted map data and part IDs from MAIN.C's data core 23808 | -1/Command | Found Zero-point Reactor 23810 | -1/Command | Found Zero-point Reactor 23879 | -1/Command | X0-1V1 sent you into danger 24201 | -1/Command | X0-1V1 vaporized surrounding terrain (radius 21) 24202 | -1/Command | Found Cld. Nova Cannon 24246 | -1/Command | Found Zero-point Reactor 24249 | -1/Command | Found Exp. EM Shield 24250 | -1/Command | Found Exp. Force Field 24255 | -1/Command | Found Perforator 24297 | -1/Command | Zero-point Reactor reconfigured into Item Mimic 24778 | -1/Command | Build established: Gladiator 24779 | -1/Command | X0-1V1 vaporized surrounding terrain (radius 22) 24972 | -1/Command | Crushed by falling debris 25020 | -1/Command | Crushed by falling debris 25055 | -1/Command | Entered Access_0 25057 | -1/Access_0 | Met Architect 25090 | -1/Access_0 | Destroyed A8 25100 | -1/Access_0 | Architect warped through subspace 25104 | -1/Access_0 | X0-1V1 mutated your Weapon slot to Propulsion slot 25177 | -1/Access_0 | Subspace Access Node disabled 25183 | -1/Access_0 | A6 warped into view 25189 | -1/Access_0 | Subspace Access Node disabled 25207 | -1/Access_0 | Subspace Access Node disabled 25215 | -1/Access_0 | X0-1V1 revealed exit location to -0/Surface 25243 | -1/Access_0 | Subspace Access Node disabled 25270 | -1/Access_0 | Found Exp. Powered Armor 25283 | -1/Access_0 | Used Subatomic Replicator to replicate Nanosword 25306 | -1/Access_0 | X0-1V1 sent allied Cetus Guard (x2) 25309 | -1/Access_0 | Found Exp. Powered Armor 25328 | -1/Access_0 | Core integrity fell below 50% 25356 | -1/Access_0 | Destroyed A6 25362 | -1/Access_0 | Found Femtoactuators 25372 | -1/Access_0 | Core integrity fell below 20% 25383 | -1/Access_0 | X0-1V1 sent allied Cetus Guard (x2) 25393 | -1/Access_0 | Destroyed by Architect with Modified Sigix Sheargun Last Messages --------------- 25387_ Enhanced Hunter destroyed. 25387_ HV Slug penetrates Enhanced Hunter. 25387_ Enhanced Hunter suffers critical hit (Destroy). 25387_ Destroyed Prototype Device. 25387_ HV Slug penetrates Enhanced Grunt. 25387_ HV Slug penetrates Enhanced Hunter. 25387_ Enhanced Hunter suffers critical hit (Destroy). 25387_ Enhanced Hunter destroyed. 25388_ Slug penetrates Enhanced Grunt. 25388_ Penetrated by Quantum Shear. 25390_ X0-1V1 uses you as a vessel of destruction. 25391_ Slug penetrates Wall. 25391_ Penetrated by Quantum Shear. 25391_ Cmb. Linear Gravjet destroyed. 25391_ Exp. Powered Armor destroyed. 25392_ HV Slug penetrates Earth. 25392_ HV Slug penetrates Wall. 25392_ HV Slug penetrates Earth. 25393_ Penetrated by Quantum Shear. 25393_ X0-1V1 bursts into laughter! Map ----- +----------------------------------------------------+ | ?????????????????????????????????????????????????? | | ?????????????????????????????????????????????????? | | ?????????????????????????"#??????????????????????? | | ??????????????#???????"""""??????????????????????? | | ??????????????? ??????? "#?????????????????????? | | ???????????????? #????? ""?????????????????????? | | ????????????????# ##???? "?????????????????????? | | ???????????????###" ??? "??###????????????????? | | ???????????????? ??? "###"##???????????????? | | ????????????????? ?? % #####???????????? | | ??????????????????# ??#; % "# ??????###???? | | ???????????????????? ###;#;##" ""# ##???## #???? | | ?????????????????????# #" ;;% "# #??## ##??? | | ?????????????? ??????# # ;;; #% ### # # #### | | ??????????????? ?????## " ; ; !!["!!"""#""" | | ???????????????? ????#"" # ; ! %;;;#= ^!! #% | | ????????????????? ????#""; !;!! % !![!* % | | ???????????????# ???###; !;[ ! !!^!! " | | ????????????????# ### ;% / ]g % !%!=! ] !% | | ???????????????????#;" % % % %=*=!!!= "" | | ???????????????????# ##; ;;;%" " !]!%* | | ???????????????????#;;;% % Y # #%" !=! "% " | | ???????????????????#; % ##;#""#%#%# #### | | ??????????????????# # ! ##### ##### #??? | | ????????????###??## ;%0! ! Y ; # #????# #?? | | ????????????# #??#!!;;; !@ g ##?###?????# #? | | ????????????#"###!!=]%!! % ;;# #???????????# # | | ???????????##%!%!%!=]g=! ####;# ###????????????# | | ????????####=!!!!==%%%!# #?#"## #???????????????# | | ???????##""!!%!!]==!*]=####" ?? #???????????????? | | ???????# %%!!!%%]!*!* # #??? #???????????????? | | ???????# ##!=!=g!!!=!=### #????? ???????????????? | | ???????# ###*!==*!! #? #?????? ??????????????? | | ???????# ###!!%!!% ##???????? ? ??????????????? | | ???????# ## "!!! ]] #???????????? ?????????????? | | ???????# # " !! ]] #????????????? ????????????? | | ?????### " " #????????????? ????????????? | | ?????# " # """" #"###????###???????#???????????? | | ?????### # ##""" "# #??#### #???????????????????? | | ???????# ### # ##??# #???????????????????? | | ???????# #?# ## #??# #???????????????????? | | ???????#/#?# ##"##?##### #???????????????????? | | ???????# #?# ### ??## #???????????????????? | | ######## #?# ####### #####???????????????? | | ### ##??????????????? | | ##"""####"# ### ##?????????????? | | #"""##??# ####### #?## ##????????????? | | "#??# #????# #?# ##???????????? | | ##?# #??# ##?#### ##??????????? | | #?# #?## ####?????# ##?????????? | +----------------------------------------------------+ Best States ------------- Heat Dissipation 170 Coolant Potential 80 Energy Generation 73 Energy Capacity 1955 Matter Stores 900 Matter Capacity 900 Sight Range 29 Robot Scan Range 20 Terrain Scan Range 20 Terrain Scan Density 210 ECM Strength 3 Armor Coverage 1200 Resistance: KI 100 Resistance: TH 100 Resistance: EX 10 Resistance: EM 100 Utility Shielding 66 Weapon Shielding 90 Weapon Cycling 20 Melee Speed Boost 50 Phase Shifting 20 Evasion (%) 102 Targeting Accuracy 12 Melee Accuracy 8 Launcher Accuracy 80 Core Analysis 11 Recoil Reduction 8 Offensive Hacking 20 Defensive Hacking 12 Item Schematics ----------------- Hvy. Armor Plating | -9/Materials | Scanalyzed Shield Generator | -9/Materials | Scanalyzed Imp. System Restoration Module | -7/Zion | Archive Remote Datajack | -7/Zion | Archive Matter Filter | -7/Zion | Archive Adv. Melee Analysis Suite | -7/Zion | Archive Adv. Signal Interpreter | -7/Zion | Archive Imp. Dynamic Insulation System | -7/Zion | Archive Imp. Melee Analysis Suite | -7/Zion | Archive Fission Core | -7/Zion | Archive Greatsword | -7/Zion | Archive Adv. Heat Sink | -7/Zion | Archive Imp. Component Analysis Suite | -7/Zion | Archive Imp. Field Recycling Unit | -7/Zion | Archive Lgt. Angular Momentum Engine | -7/Zion | Archive Hds. Centrium Wheel | -3/Quarantine | Archive Cld. Impulse Thruster | -3/Quarantine | Archive Exp. Cooling System | -3/Quarantine | Archive Tiamat Missile Launcher | -3/Quarantine | Archive Cld. Antimatter Reactor | -3/Quarantine | Archive Adv. Thermal Defense Suite | -3/Quarantine | Archive Hvy. Gatling Laser | -3/Quarantine | Archive Hvy. Dispersion Rifle | -3/Quarantine | Archive Hvy. Tesla Rifle | -3/Quarantine | Z-intel Adv. KE Penetrator | -3/Quarantine | Z-intel Adv. Plasma Rifle | -3/Quarantine | Z-intel Imp. Thermal Defense Suite | -3/Quarantine | Z-intel Exp. Coolant Injector | -3/Quarantine | Z-intel Proton Burst Cannon | -3/Quarantine | Z-intel Graviton Reactor | -3/Quarantine | Z-intel Cld. Nuclear Pulse Thruster | -3/Quarantine | Z-intel Gravity Flail | -3/Quarantine | Z-intel Neutron Cannon | -3/Quarantine | Z-intel Cld. Proton Cannon | -3/Quarantine | Z-intel Imp. Diametric Drive | -3/Quarantine | Z-intel Hvy. Proton Cannon | -3/Quarantine | Archive Plasma Lance | -3/Quarantine | Archive Centrium Heavy Armor Plating | -3/Quarantine | Archive Com. Mass Driver | -3/Quarantine | Archive Lgt. Neutrino Core | -3/Quarantine | Archive Exp. Thermal Shield | -3/Quarantine | Archive Hvy. Wave Gun | -3/Quarantine | Archive Centrium Greatsword | -3/Quarantine | Archive Exp. Hacking Suite | -3/Quarantine | Archive Molecular Scythe | -3/Quarantine | Archive Ionic Axe | -1/Command | Z-intel Exp. Reaction Control System | -1/Command | Z-intel Exp. EM Disruption Field | -1/Command | Z-intel Exp. Matter Compressor | -1/Command | Z-intel Adv. Remote Shield | -1/Command | Z-intel Exp. ECM Suite | -1/Command | Z-intel Hds. Centrium Heavy Treads | -1/Command | Z-intel Exp. Thermal Defense Suite | -1/Command | Z-intel Exp. Biometal Heavy Treads | -1/Command | Z-intel Cld. Field Propulsion Drive | -1/Command | Z-intel Adv. Energy Well | -1/Command | Z-intel Robot Schematics ------------------ L-41 Fighter | -7/Zion | Archive S-27 Virus | -7/Zion | Archive H-88 Terminator | -7/Zion | Archive G-67 Veteran | -3/Quarantine | Archive K-01 Serf | -3/Quarantine | Archive M-36 Artificer | -3/Quarantine | Archive B-74 Champion | -3/Quarantine | Archive Fabricated ------------ Nothing Repaired ---------- Nothing Studied --------- Lgt. Treads | -9/Materials | Hacked Alien Tech Used ----------------- Dimensional Node Initializer Transdimensional Reconstructor Subatomic Replicator Achievements -------------- None Challenges ------------ None Game ------ Seed MassPitchforkGuard Manual? 0 Play Time 05:22:44 Cumulative 1278.3 hours Start 2026.06.24 @ 09:43:44 End 2026.06.24 @ 21:40:45 Sessions 5 Manual Loads 0 Difficulty Rogue Special Mode None Game No. 403 Rogue 401 Adventurer 2 Explorer 0 Win Type - Total 106 Types 33/24/23/2/1/1/16/2/1/3 Lore% 98 Gallery% 92 Achievement% 91 Wizard Run 0 Options --------- Layout 0 ASCII 0 Keyboard 1 Movement Numpad Keybinds 0 Fullscreen 1 Font 24/Smallcaps Map View 76x50 Zoom Use 0% Tactical HUD 1 Map Filters NONE Filters NONE Steam 1 RUN: 2d8a21c3-0ef2-4687-bd5e-c3b231dc7244